Workbook

Sheet Wohneinheiten
B2: ="Betriebskostenabrechnung "& YEAR(E7) -> Betriebskostenabrechnung 2022 | M2: ß ß ß ß
B4: Wohnungsdaten, Mieterdaten und Berechnungsfaktoren | M4: Grundsteuer | N4: Wasserkosten | Z4: Heizkosten | AD4: Zentrale Wasserbereitung | AL4: Verbundene Heizungs und Warmwasserversorgungsanlagen | AT4: Fahrstuhl | AU4: Straßenreinigung Müllabfuhr | AV4: Hausreinigung Ungeziefer-bekämpfung | AW4: Gartenpflege | AX4: Beleuchtung | AY4: Schornstein-reinigung | AZ4: Versicherungen | BA4: Hauswart | BB4: Gemeinschafts-antenne Breitbandkabel | BC4: Wascheinrichtungen | BG4: Sonstige Kosten
C5: Mieterdaten | E5: Abrechnungszeitraum | H5: Berechnungsfaktoren | N5: Wasser | V5: Entwässerung | BL5: Einzelabrechnungen und Vorauszahlungen (Zahlungseingänge)
B6: Wohneinheit | C6: Mieter | D6: Bewohnerzahl | E6: von | F6: bis | G6: Wohntage | H6: Personen/Tage | I6: m² Wohn-fläche | J6: m² / Tage | K6: Punktwert | N6: Zählerstand alt | O6: Zählerstand neu | P6: Differenz | Q6: Anteil nach Einheiten | R6: Anteil nach Personen / Tage | S6: Anteil nach m² / Tage | T6: Schlüssel-Nr. | U6: Relevanter Betrag | V6: Anteil nach Einheiten | W6: Anteil nach Personen / Tage | X6: Anteil nach m² / Tage | Y6: Relevanter Betrag | Z6: Zählerstand alt | AA6: Zählerstand neu | AB6: Differenz | AC6: Anteil nach Einheiten | AD6: Zählerstand alt | AE6: Zählerstand neu | AF6: Differenz | AG6: Anteil nach Einheiten | AH6: Anteil nach Personen / Tage | AI6: Anteil nach m² / Tage | AJ6: Schlüssel-Nr. | AK6: Relevanter Betrag | AL6: Zählerstand alt | AM6: Zählerstand neu | AN6: Differenz | AO6: Anteil nach Einheiten | AP6: Anteil nach Personen / Tage | AQ6: Anteil nach m² / Tage | AR6: Schlüssel-Nr. | AS6: Relevanter Betrag | BC6: Jede Wohnung 1 Anteil | BD6: Anteil nach Personen / Tage | BE6: Schlüssel-Nr. | BF6: Relevanter Betrag | BG6: Jede Wohnung 1 Anteil | BH6: Anteil nach Personen / Tage | BI6: Schlüssel-Nr. | BJ6: Relevanter Betrag | BL6: gesamte Nebenkosten Jahr | BM6: neue Abschlags-zahlung / Monat | BN6: Vorauszahlung Januar | BO6: Vorauszahlung Februar | BP6: Vorauszahlung März | BQ6: Vorauszahlung April | BR6: Vorauszahlung Mai | BS6: Vorauszahlung Juni | BT6: Vorauszahlung Juli | BU6: Vorauszahlung August | BV6: Vorauszahlung September | BW6: Vorauszahlung Oktober | BX6: Vorauszahlung November | BY6: Vorauszahlung Dezemberr | BZ6: Summe Abschlags-zahlung / Vorjahr | CA6: Guthaben / Nachzahlung / Vorjahr
B7: Abrechnungszeitraum: | E7: 2022-01-01 | F7: 2022-12-31 | M7: =Gesamtübersicht!$G23 -> 2564 | N7: =Gesamtübersicht!$G24 -> 600 | O7: =Gesamtübersicht!$G23 -> 2564 | P7: =Gesamtübersicht!$G23 -> 2564 | Q7: =Gesamtübersicht!$G23 -> 2564 | R7: =Gesamtübersicht!$G23 -> 2564 | S7: =Gesamtübersicht!$G23 -> 2564 | T7: =Gesamtübersicht!$G23 -> 2564 | U7: =Gesamtübersicht!$G23 -> 2564 | V7: =Gesamtübersicht!$G25 -> 500 | W7: =Gesamtübersicht!$G23 -> 2564 | X7: =Gesamtübersicht!$G23 -> 2564 | Y7: =Gesamtübersicht!$G23 -> 2564 | Z7: =Gesamtübersicht!$G26 -> 0 | AA7: =Gesamtübersicht!$G23 -> 2564 | AB7: =Gesamtübersicht!$G23 -> 2564 | AC7: =Gesamtübersicht!$G23 -> 2564 | AD7: =Gesamtübersicht!$G27 -> 0 | AE7: =Gesamtübersicht!$G23 -> 2564 | AF7: =Gesamtübersicht!$G23 -> 2564 | AG7: =Gesamtübersicht!$G23 -> 2564 | AH7: =Gesamtübersicht!$G26 -> 0 | AI7: =Gesamtübersicht!$G23 -> 2564 | AJ7: =Gesamtübersicht!$G23 -> 2564 | AK7: =Gesamtübersicht!$G23 -> 2564 | AL7: =Gesamtübersicht!$G28 -> 0 | AM7: =Gesamtübersicht!$G23 -> 2564 | AN7: =Gesamtübersicht!$G23 -> 2564 | AO7: =Gesamtübersicht!$G23 -> 2564 | AP7: =Gesamtübersicht!$G26 -> 0 | AQ7: =Gesamtübersicht!$G23 -> 2564 | AR7: =Gesamtübersicht!$G23 -> 2564 | AS7: =Gesamtübersicht!$G23 -> 2564 | AT7: =Gesamtübersicht!$G29 -> 1094 | AU7: =Gesamtübersicht!$G30 -> 678 | AV7: =Gesamtübersicht!$G31 -> 100 | AW7: =Gesamtübersicht!$G32 -> 350 | AX7: =Gesamtübersicht!$G33 -> 100 | AY7: =Gesamtübersicht!$G34 -> 200 | AZ7: =Gesamtübersicht!$G35 -> 1000 | BA7: =Gesamtübersicht!$G36 -> 300 | BB7: =Gesamtübersicht!$G37 -> 400 | BC7: =Gesamtübersicht!$G38 -> 100 | BD7: =Gesamtübersicht!$G30 -> 678 | BE7: =Gesamtübersicht!$G30 -> 678 | BF7: =Gesamtübersicht!$G30 -> 678 | BG7: =Gesamtübersicht!$G39 -> 200 | BH7: =Gesamtübersicht!$G30 -> 678 | BI7: =Gesamtübersicht!$G30 -> 678 | BJ7: =Gesamtübersicht!$G30 -> 678 | BL7: =Gesamtübersicht!$G40 -> 8186
B9: WE 1 | C9: Hans Mustermann | D9: 1 | E9: 2022-01-01 | F9: 2022-03-31 | G9: =F9-E9+IF(C9>"",1,0) -> 90 | H9: =D9*G9 -> 90 | I9: =Gesamtübersicht!C4 -> 94.2 | J9: =G9*I9 -> 8478 | K9: =(D9)*I9*G9 -> 8478 | M9: =($M$7/$J$57*J9) -> 151.0399355 | N9: 3456 | O9: 3996 | P9: =O9-N9 -> 540 | Q9: =IF($P$57<>0,$N$7/$P$57*P9,0) -> 96 | R9: =$N$7/$H$57*H9 -> 15.72510192 | S9: =$N$7/$J$57*J9 -> 35.3447587 | T9: 1 | U9: =IF(T9=1,Q9,IF(T9=2,R9,S9)) -> 96 | V9: =IF($P$57<>0,$V$7/$P$57*P9,0) -> 80 | W9: =$V$7/$H$57*H9 -> 13.1042516 | X9: =$V$7/$J$57*J9 -> 29.45396558 | Y9: =IF(T9=1,V9,IF(T9=2,W9,X9)) -> 80 | Z9: 0 | AA9: 0 | AB9: =AA9-Z9 -> 0 | AC9: =IF($AB$57<>0,$Z$7/$AB$57*AB9,0) -> 0 | AD9: 0 | AE9: 0 | AF9: =AE9-AD9 -> 0 | AG9: =IF($AF$57<>0,$AD$7/$AF$57*AF9,0) -> 0 | AH9: =$AD$7/$H$57*H9 -> 0 | AI9: =$AD$7/$J$57*J9 -> 0 | AJ9: 1 | AK9: =IF(AJ9=1,AG9,IF(AJ9=2,AH9,AI9)) -> 0 | AL9: 0 | AM9: 0 | AN9: =AM9-AL9 -> 0 | AO9: =IF($AN$57<>0,$AL$7/$AN$57*AN9,0) -> 0 | AP9: =$AL$7/$H$57*H9 -> 0 | AQ9: =$AL$7/$J$57*J9 -> 0 | AR9: 1 | AS9: =IF(AR9=1,AO9,IF(AR9=2,AP9,AQ9)) -> 0 | AT9: =$AT$7/$J$57*J9 -> 64.4452767 | AU9: =$AU$7/$J$57*J9 -> 39.93957733 | AV9: =$AV$7/$J$57*J9 -> 5.890793117 | AW9: =$AW$7/$J$57*J9 -> 20.61777591 | AX9: =$AX$7/$J$57*J9 -> 5.890793117 | AY9: =$AY$7/$J$57*J9 -> 11.78158623 | AZ9: =$AZ$7/$J$57*J9 -> 58.90793117 | BA9: =$BA$7/$J$57*J9 -> 17.67237935 | BB9: =IF(C9>"",$BB$7/$G$57*G9,0) -> 24.65753425 | BC9: =IF(C9>"",$BC$7/$G$57*G9,0) -> 6.164383562 | BD9: =$BC$7/$H$57*H9 -> 2.62085032 | BE9: 1 | BF9: =IF(BE9=1,BC9,BD9) -> 6.164383562 | BG9: =IF(C9>"",$BG$7/$G$57*G9,0) -> 12.32876712 | BH9: =$BG$7/$H$57*H9 -> 5.241700641 | BI9: 2 | BJ9: =IF(BI9=1,BG9,BH9) -> 5.241700641 | BL9: =M9+U9+Y9+AC9+AK9+AS9+AT9+AU9+AV9+AW9+AX9+AY9+AZ9+BA9+BB9+BF9+BJ9 -> 588.2496669 | BM9: =IF(BY9=0,0,IF(C9="",0,BL9/G9*365)/12) -> 0 | BN9: 150 | BO9: 150 | BP9: 150 | BQ9: 0 | BR9: 0 | BS9: 0 | BT9: 0 | BU9: 0 | BV9: 0 | BW9: 0 | BX9: 0 | BY9: 0 | BZ9: =SUM(BN9:BY9) -> 450 | CA9: =SUM(BL9-BZ9)*-1 -> -138.2496669
C10: Nachmieter 1 | D10: 2 | E10: 2022-04-01 | F10: 2022-10-31 | G10: 214 | H10: =D10*G10 -> 428 | J10: =G10*I9 -> 20158.8 | K10: =(D10)*I9*G10 -> 40317.6 | M10: =($M$7/$J$57*J10) -> 359.1394022 | N10: 3600 | O10: 3954 | P10: =O10-N10 -> 354 | Q10: =IF($P$57<>0,$N$7/$P$57*P10,0) -> 62.93333333 | R10: =$N$7/$H$57*H10 -> 74.78159581 | S10: =$N$7/$J$57*J10 -> 84.0419818 | T10: =$T$9 -> 1 | U10: =IF(T10=1,Q10,IF(T10=2,R10,S10)) -> 62.93333333 | V10: =IF($P$57<>0,$V$7/$P$57*P10,0) -> 52.44444444 | W10: =$V$7/$H$57*H10 -> 62.31799651 | X10: =$V$7/$J$57*J10 -> 70.03498484 | Y10: =IF(T10=1,V10,IF(T10=2,W10,X10)) -> 52.44444444 | Z10: 0 | AA10: 0 | AB10: =AA10-Z10 -> 0 | AC10: =IF($AB$57<>0,$Z$7/$AB$57*AB10,0) -> 0 | AD10: 0 | AE10: 0 | AF10: =AE10-AD10 -> 0 | AG10: =IF($AF$57<>0,$AD$7/$AF$57*AF10,0) -> 0 | AH10: =$AD$7/$H$57*H10 -> 0 | AI10: =$AD$7/$J$57*J10 -> 0 | AJ10: =$AJ$9 -> 1 | AK10: =IF(AJ10=1,AG10,IF(AJ10=2,AH10,AI10)) -> 0 | AL10: 0 | AM10: 0 | AN10: =AM10-AL10 -> 0 | AO10: =IF($AN$57<>0,$AL$7/$AN$57*AN10,0) -> 0 | AP10: =$AL$7/$H$57*H10 -> 0 | AQ10: =$AL$7/$J$57*J10 -> 0 | AR10: =$AR$9 -> 1 | AS10: =IF(AR10=1,AO10,IF(AR10=2,AP10,AQ10)) -> 0 | AT10: =$AT$7/$J$57*J10 -> 153.2365468 | AU10: 94.96743944 | AV10: =$AV$7/$J$57*J10 -> 14.00699697 | AW10: =$AW$7/$J$57*J10 -> 49.02448938 | AX10: =$AX$7/$J$57*J10 -> 14.00699697 | AY10: =$AY$7/$J$57*J10 -> 28.01399393 | AZ10: =$AZ$7/$J$57*J10 -> 140.0699697 | BA10: =$BA$7/$J$57*J10 -> 42.0209909 | BB10: =IF(C10>"",$BB$7/$G$57*G10,0) -> 58.63013699 | BC10: =IF(C10>"",$BC$7/$G$57*G10,0) -> 14.65753425 | BD10: =$BC$7/$H$57*H10 -> 12.4635993 | BE10: =$BE$9 -> 1 | BF10: =IF(BE10=1,BC10,BD10) -> 14.65753425 | BG10: =IF(C10>"",$BG$7/$G$57*G10,0) -> 29.31506849 | BH10: =$BG$7/$H$57*H10 -> 24.9271986 | BI10: =$BI$9 -> 2 | BJ10: =IF(BI10=1,BG10,BH10) -> 24.9271986 | BL10: =M10+U10+Y10+AC10+AK10+AS10+AT10+AU10+AV10+AW10+AX10+AY10+AZ10+BA10+BB10+BF10+BJ10 -> 1108.079474 | BM10: =IF(BY10=0,0,IF(C10="",0,BL10/G10*365)/12) -> 0 | BN10: 0 | BO10: 0 | BP10: 0 | BQ10: 150 | BR10: 150 | BS10: 150 | BT10: 150 | BU10: 150 | BV10: 150 | BW10: 150 | BX10: 0 | BY10: 0 | BZ10: =SUM(BN10:BY10) -> 1050 | CA10: =SUM(BL10-BZ10)*-1 -> -58.07947393
C11: Nachmieter 2 | D11: 3 | E11: 2022-11-01 | F11: 2022-12-31 | G11: 61 | H11: 183 | J11: =G11*I9 -> 5746.2 | K11: =(D11)*I9*G11 -> 17238.6 | M11: 102.3715119 | N11: 3954 | O11: 4100 | P11: 146 | Q11: 25.95555556 | R11: =$N$7/$H$57*H11 -> 31.97437391 | S11: 23.95589201 | T11: 1 | U11: 25.95555556 | V11: 21.62962963 | W11: 26.64531159 | X11: 19.96324334 | Y11: 21.62962963 | Z11: 0 | AA11: 0 | AB11: 0 | AC11: 0 | AD11: 0 | AE11: 0 | AF11: 0 | AG11: 0 | AH11: 0 | AI11: 0 | AJ11: =$AJ$9 -> 1 | AK11: 0 | AL11: 0 | AM11: 0 | AN11: 0 | AO11: 0 | AP11: 0 | AQ11: 0 | AR11: =$AR$9 -> 1 | AS11: 0 | AT11: 43.67957643 | AU11: 27.07015797 | AV11: 3.992648668 | AW11: =$AW$7/$J$57*J11 -> 13.97427034 | AX11: 3.992648668 | AY11: 7.985297336 | AZ11: 39.92648668 | BA11: 11.977946 | BB11: 16.71232877 | BC11: 4.178082192 | BD11: 5.329062318 | BE11: =$BE$9 -> 1 | BF11: 4.178082192 | BG11: 8.356164384 | BH11: 10.65812464 | BI11: =$BI$9 -> 2 | BJ11: 10.65812464 | BL11: 334.1042647 | BM11: 166.5957058 | BN11: 0 | BO11: 0 | BP11: 0 | BQ11: 0 | BR11: 0 | BS11: 0 | BT11: 0 | BU11: 0 | BV11: 0 | BW11: 0 | BX11: 150 | BY11: 150 | BZ11: 300 | CA11: -34.10426473
B12: WE 2 | C12: Renate Musterfrau | D12: 2 | E12: 2022-01-01 | F12: 2022-12-31 | G12: 365 | H12: 730 | I12: =Gesamtübersicht!C5 -> 138 | J12: =G12*I12 -> 50370 | K12: =(D12)*I12*G12 -> 100740 | M12: 897.3674867 | N12: 4542 | O12: 5000 | P12: 458 | Q12: 81.42222222 | R12: 127.5480489 | S12: 209.9923916 | T12: 1 | U12: 81.42222222 | V12: 67.85185185 | W12: 106.2900408 | X12: 174.9936597 | Y12: 67.85185185 | Z12: 0 | AA12: 0 | AB12: 0 | AC12: 0 | AD12: 0 | AE12: 0 | AF12: 0 | AG12: 0 | AH12: 0 | AI12: 0 | AJ12: 1 | AK12: 0 | AL12: 0 | AM12: 0 | AN12: 0 | AO12: 0 | AP12: 0 | AQ12: 0 | AR12: 1 | AS12: 0 | AT12: 382.8861273 | AU12: 237.2914025 | AV12: 34.99873193 | AW12: 122.4955618 | AX12: 34.99873193 | AY12: 69.99746386 | AZ12: 349.9873193 | BA12: 104.9961958 | BB12: 100 | BC12: 25 | BD12: 21.25800815 | BE12: 1 | BF12: 25 | BG12: 50 | BH12: 42.51601631 | BI12: 2 | BJ12: 42.51601631 | BL12: 2551.809111 | BM12: 212.6507593 | BN12: 300 | BO12: 300 | BP12: 300 | BQ12: 300 | BR12: 300 | BS12: 300 | BT12: 300 | BU12: 300 | BV12: 300 | BW12: 300 | BX12: 300 | BY12: 300 | BZ12: 3600 | CA12: 1048.190889
G13: 0 | H13: 0 | J13: =G13*I12 -> 0 | K13: =(D13)*I12*G13 -> 0 | M13: 0 | N13: 0 | O13: 0 | P13: 0 | Q13: 0 | R13: 0 | S13: 0 | T13: 1 | U13: 0 | V13: 0 | W13: 0 | X13: 0 | Y13: 0 | Z13: 0 | AA13: 0 | AB13: 0 | AC13: 0 | AD13: 0 | AE13: 0 | AF13: 0 | AG13: 0 | AH13: 0 | AI13: 0 | AJ13: 1 | AK13: 0 | AL13: 0 | AM13: 0 | AN13: 0 | AO13: 0 | AP13: 0 | AQ13: 0 | AR13: 1 | AS13: 0 | AT13: 0 | AU13: 0 | AV13: 0 | AW13: 0 | AX13: 0 | AY13: 0 | AZ13: 0 | BA13: 0 | BB13: 0 | BC13: 0 | BD13: 0 | BE13: 1 | BF13: 0 | BG13: 0 | BH13: 0 | BI13: 2 | BJ13: 0 | BL13: 0 | BM13: 0 | BN13: 0 | BO13: 0 | BP13: 0 | BQ13: 0 | BR13: 0 | BS13: 0 | BT13: 0 | BU13: 0 | BV13: 0 | BW13: 0 | BX13: 0 | BY13: 0 | BZ13: 0 | CA13: 0
G14: 0 | H14: 0 | J14: =G14*I12 -> 0 | K14: =(D14)*I12*G14 -> 0 | M14: 0 | N14: 0 | O14: 0 | P14: 0 | Q14: 0 | R14: 0 | S14: 0 | T14: 1 | U14: 0 | V14: 0 | W14: 0 | X14: 0 | Y14: 0 | Z14: 0 | AA14: 0 | AB14: 0 | AC14: 0 | AD14: 0 | AE14: 0 | AF14: 0 | AG14: 0 | AH14: 0 | AI14: 0 | AJ14: 1 | AK14: 0 | AL14: 0 | AM14: 0 | AN14: 0 | AO14: 0 | AP14: 0 | AQ14: 0 | AR14: 1 | AS14: 0 | AT14: 0 | AU14: 0 | AV14: 0 | AW14: 0 | AX14: 0 | AY14: 0 | AZ14: 0 | BA14: 0 | BB14: 0 | BC14: 0 | BD14: 0 | BE14: 1 | BF14: 0 | BG14: 0 | BH14: 0 | BI14: 2 | BJ14: 0 | BL14: 0 | BM14: 0 | BN14: 0 | BO14: 0 | BP14: 0 | BQ14: 0 | BR14: 0 | BS14: 0 | BT14: 0 | BU14: 0 | BV14: 0 | BW14: 0 | BX14: 0 | BY14: 0 | BZ14: 0 | CA14: 0
B15: WE3 | C15: Hans Testperson | D15: 3 | E15: 2022-01-01 | F15: 2022-12-31 | G15: 365 | H15: 1095 | I15: =Gesamtübersicht!C6 -> 66.6 | J15: =G15*I15 -> 24309 | K15: =(D15)*I15*G15 -> 72927 | M15: 433.0773523 | N15: 1234 | O15: 1456 | P15: 222 | Q15: 39.46666667 | R15: =$N$7/$H$57*H15 -> 191.3220734 | S15: 101.3441542 | T15: 1 | U15: 39.46666667 | V15: 32.88888889 | W15: 159.4350612 | X15: 84.45346183 | Y15: 32.88888889 | Z15: 0 | AA15: 0 | AB15: 0 | AC15: =IF($AB$57<>0,$Z$7/$AB$57*AB15,0) -> 0 | AD15: 0 | AE15: 0 | AF15: 0 | AG15: 0 | AH15: 0 | AI15: 0 | AJ15: 1 | AK15: 0 | AL15: 0 | AM15: 0 | AN15: 0 | AO15: 0 | AP15: 0 | AQ15: 0 | AR15: 1 | AS15: 0 | AT15: 184.7841745 | AU15: 114.5188942 | AV15: 16.89069237 | AW15: 59.11742328 | AX15: 16.89069237 | AY15: 33.78138473 | AZ15: 168.9069237 | BA15: 50.6720771 | BB15: 100 | BC15: 25 | BD15: 31.88701223 | BE15: 1 | BF15: 25 | BG15: 50 | BH15: 63.77402446 | BI15: 2 | BJ15: 63.77402446 | BL15: 1339.769195 | BM15: 111.6474329 | BN15: 120 | BO15: 120 | BP15: 120 | BQ15: 120 | BR15: 120 | BS15: 120 | BT15: 120 | BU15: 120 | BV15: 120 | BW15: 120 | BX15: 120 | BY15: 120 | BZ15: 1440 | CA15: 100.2308055
G16: 0 | H16: 0 | J16: =G16*I15 -> 0 | K16: =(D16)*I15*G16 -> 0 | M16: 0 | N16: 0 | O16: 0 | P16: 0 | Q16: 0 | R16: 0 | S16: 0 | T16: 1 | U16: 0 | V16: 0 | W16: 0 | X16: 0 | Y16: 0 | Z16: 0 | AA16: 0 | AB16: 0 | AC16: 0 | AD16: 0 | AE16: 0 | AF16: 0 | AG16: 0 | AH16: 0 | AI16: 0 | AJ16: 1 | AK16: 0 | AL16: 0 | AM16: 0 | AN16: 0 | AO16: 0 | AP16: 0 | AQ16: 0 | AR16: 1 | AS16: 0 | AT16: 0 | AU16: 0 | AV16: 0 | AW16: 0 | AX16: 0 | AY16: 0 | AZ16: 0 | BA16: 0 | BB16: 0 | BC16: 0 | BD16: 0 | BE16: 1 | BF16: 0 | BG16: 0 | BH16: 0 | BI16: 2 | BJ16: 0 | BL16: 0 | BM16: 0 | BN16: 0 | BO16: 0 | BP16: 0 | BQ16: 0 | BR16: 0 | BS16: 0 | BT16: 0 | BU16: 0 | BV16: 0 | BW16: 0 | BX16: 0 | BY16: 0 | BZ16: 0 | CA16: 0
G17: 0 | H17: 0 | J17: =G17*I15 -> 0 | K17: =(D17)*I15*G17 -> 0 | M17: 0 | N17: 0 | O17: 0 | P17: 0 | Q17: 0 | R17: 0 | S17: 0 | T17: 1 | U17: 0 | V17: 0 | W17: 0 | X17: 0 | Y17: 0 | Z17: 0 | AA17: 0 | AB17: 0 | AC17: 0 | AD17: 0 | AE17: 0 | AF17: 0 | AG17: 0 | AH17: 0 | AI17: 0 | AJ17: 1 | AK17: 0 | AL17: 0 | AM17: 0 | AN17: 0 | AO17: 0 | AP17: 0 | AQ17: 0 | AR17: 1 | AS17: 0 | AT17: 0 | AU17: 0 | AV17: 0 | AW17: 0 | AX17: 0 | AY17: 0 | AZ17: 0 | BA17: 0 | BB17: 0 | BC17: 0 | BD17: 0 | BE17: 1 | BF17: 0 | BG17: 0 | BH17: 0 | BI17: 2 | BJ17: 0 | BL17: 0 | BM17: 0 | BN17: 0 | BO17: 0 | BP17: 0 | BQ17: 0 | BR17: 0 | BS17: 0 | BT17: 0 | BU17: 0 | BV17: 0 | BW17: 0 | BX17: 0 | BY17: 0 | BZ17: 0 | CA17: 0
B18: WE4 | C18: Renate Testperson | D18: 4 | E18: 2022-01-01 | F18: 2022-06-30 | G18: 181 | H18: 724 | I18: =Gesamtübersicht!C7 -> 95.5 | J18: =G18*I18 -> 17285.5 | K18: =(D18)*I18*G18 -> 69142 | M18: 307.9500832 | N18: 3456 | O18: 4000 | P18: 544 | Q18: 96.71111111 | R18: 126.4997088 | S18: 72.063202 | T18: 1 | U18: 96.71111111 | V18: 80.59259259 | W18: 105.416424 | X18: 60.05266833 | Y18: 80.59259259 | Z18: 0 | AA18: 0 | AB18: 0 | AC18: 0 | AD18: 0 | AE18: 0 | AF18: 0 | AG18: 0 | AH18: 0 | AI18: 0 | AJ18: 1 | AK18: 0 | AL18: 0 | AM18: 0 | AN18: 0 | AO18: 0 | AP18: 0 | AQ18: 0 | AR18: 1 | AS18: 0 | AT18: 131.3952383 | AU18: 81.43141826 | AV18: 12.01053367 | AW18: 42.03686783 | AX18: 12.01053367 | AY18: 24.02106733 | AZ18: 120.1053367 | BA18: 36.031601 | BB18: 49.5890411 | BC18: 12.39726027 | BD18: 21.0832848 | BE18: 1 | BF18: 12.39726027 | BG18: 24.79452055 | BH18: 42.1665696 | BI18: 2 | BJ18: 42.1665696 | BL18: 1048.449255 | BM18: 0 | BN18: 170 | BO18: 170 | BP18: 170 | BQ18: 170 | BR18: 170 | BS18: 170 | BT18: 0 | BU18: 0 | BV18: 0 | BW18: 0 | BX18: 0 | BY18: 0 | BZ18: 1020 | CA18: -28.44925461
C19: Nachmieter 3 | D19: 1 | E19: 2022-07-01 | F19: 2022-12-31 | G19: 184 | H19: 184 | J19: =G19*I18 -> 17572 | K19: =(D19)*I18*G19 -> 17572 | M19: 313.0542282 | N19: 1234 | O19: 2345 | P19: 1111 | Q19: 197.5111111 | R19: 32.14909726 | S19: 73.25761971 | T19: 1 | U19: 197.5111111 | V19: 164.5925926 | W19: 26.79091439 | X19: 61.04801643 | Y19: 164.5925926 | Z19: 0 | AA19: 0 | AB19: 0 | AC19: 0 | AD19: 0 | AE19: 0 | AF19: 0 | AG19: 0 | AH19: 0 | AI19: 0 | AJ19: 1 | AK19: 0 | AL19: 0 | AM19: 0 | AN19: 0 | AO19: 0 | AP19: 0 | AQ19: 0 | AR19: 1 | AS19: 0 | AT19: 133.5730599 | AU19: 82.78111027 | AV19: 12.20960329 | AW19: 42.7336115 | AX19: 12.20960329 | AY19: 24.41920657 | AZ19: 122.0960329 | BA19: 36.62880986 | BB19: 50.4109589 | BC19: 12.60273973 | BD19: 5.358182877 | BE19: 1 | BF19: 12.60273973 | BG19: 25.20547945 | BH19: 10.71636575 | BI19: 2 | BJ19: 10.71636575 | BL19: 1215.539034 | BM19: 200.9382914 | BN19: 0 | BO19: 0 | BP19: 0 | BQ19: 0 | BR19: 0 | BS19: 0 | BT19: 170 | BU19: 170 | BV19: 170 | BW19: 170 | BX19: 170 | BY19: 170 | BZ19: 1020 | CA19: -195.5390339
G20: 0 | H20: 0 | J20: =G20*I18 -> 0 | K20: =(D20)*I18*G20 -> 0 | M20: 0 | N20: 0 | O20: 0 | P20: 0 | Q20: 0 | R20: 0 | S20: 0 | T20: 1 | U20: 0 | V20: 0 | W20: 0 | X20: 0 | Y20: 0 | Z20: 0 | AA20: 0 | AB20: 0 | AC20: 0 | AD20: 0 | AE20: 0 | AF20: 0 | AG20: 0 | AH20: 0 | AI20: 0 | AJ20: 1 | AK20: 0 | AL20: 0 | AM20: 0 | AN20: 0 | AO20: 0 | AP20: 0 | AQ20: 0 | AR20: 1 | AS20: 0 | AT20: 0 | AU20: 0 | AV20: 0 | AW20: 0 | AX20: 0 | AY20: 0 | AZ20: 0 | BA20: 0 | BB20: 0 | BC20: 0 | BD20: 0 | BE20: 1 | BF20: 0 | BG20: 0 | BH20: 0 | BI20: 2 | BJ20: 0 | BL20: 0 | BM20: 0 | BN20: 0 | BO20: 0 | BP20: 0 | BQ20: 0 | BR20: 0 | BS20: 0 | BT20: 0 | BU20: 0 | BV20: 0 | BW20: 0 | BX20: 0 | BY20: 0 | BZ20: 0 | CA20: 0
B21: WE 5 | G21: 0 | H21: 0 | I21: =Gesamtübersicht!C8 -> 0 | J21: =G21*I21 -> 0 | K21: =(D21)*I21*G21 -> 0 | M21: 0 | N21: 0 | O21: 0 | P21: 0 | Q21: 0 | R21: 0 | S21: 0 | T21: 1 | U21: =IF(T21=1,Q21,IF(T21=2,R21,S21)) -> 0 | V21: 0 | W21: 0 | X21: 0 | Y21: 0 | Z21: 0 | AA21: 0 | AB21: 0 | AC21: 0 | AD21: 0 | AE21: 0 | AF21: 0 | AG21: 0 | AH21: 0 | AI21: 0 | AJ21: 1 | AK21: 0 | AL21: 0 | AM21: 0 | AN21: 0 | AO21: 0 | AP21: 0 | AQ21: 0 | AR21: 1 | AS21: 0 | AT21: 0 | AU21: 0 | AV21: 0 | AW21: 0 | AX21: 0 | AY21: 0 | AZ21: 0 | BA21: 0 | BB21: 0 | BC21: 0 | BD21: 0 | BE21: 1 | BF21: 0 | BG21: 0 | BH21: 0 | BI21: 2 | BJ21: 0 | BL21: 0 | BM21: 0 | BN21: 0 | BO21: 0 | BP21: 0 | BQ21: 0 | BR21: 0 | BS21: 0 | BT21: 0 | BU21: 0 | BV21: 0 | BW21: 0 | BX21: 0 | BY21: 0 | BZ21: 0 | CA21: 0
G22: 0 | H22: 0 | J22: =G22*I21 -> 0 | K22: =(D22)*I21*G22 -> 0 | M22: 0 | N22: 0 | O22: 0 | P22: 0 | Q22: 0 | R22: 0 | S22: 0 | T22: 1 | U22: 0 | V22: 0 | W22: 0 | X22: 0 | Y22: 0 | Z22: 0 | AA22: 0 | AB22: 0 | AC22: 0 | AD22: 0 | AE22: 0 | AF22: 0 | AG22: 0 | AH22: 0 | AI22: 0 | AJ22: 1 | AK22: 0 | AL22: 0 | AM22: 0 | AN22: 0 | AO22: 0 | AP22: 0 | AQ22: =$AL$7/$J$57*J22 -> 0 | AR22: 1 | AS22: 0 | AT22: 0 | AU22: 0 | AV22: 0 | AW22: 0 | AX22: 0 | AY22: 0 | AZ22: 0 | BA22: 0 | BB22: 0 | BC22: 0 | BD22: 0 | BE22: 1 | BF22: 0 | BG22: 0 | BH22: 0 | BI22: 2 | BJ22: 0 | BL22: 0 | BM22: 0 | BN22: 0 | BO22: 0 | BP22: 0 | BQ22: 0 | BR22: 0 | BS22: 0 | BT22: 0 | BU22: 0 | BV22: 0 | BW22: 0 | BX22: 0 | BY22: 0 | BZ22: 0 | CA22: 0
G23: =F23-E23+IF(C23>"",1,0) -> 0 | H23: 0 | J23: =G23*I21 -> 0 | K23: =(D23)*I21*G23 -> 0 | M23: 0 | N23: 0 | O23: 0 | P23: 0 | Q23: 0 | R23: 0 | S23: 0 | T23: 1 | U23: 0 | V23: 0 | W23: 0 | X23: 0 | Y23: 0 | Z23: 0 | AA23: 0 | AB23: 0 | AC23: 0 | AD23: 0 | AE23: 0 | AF23: 0 | AG23: 0 | AH23: 0 | AI23: 0 | AJ23: 1 | AK23: 0 | AL23: 0 | AM23: 0 | AN23: 0 | AO23: 0 | AP23: 0 | AQ23: 0 | AR23: 1 | AS23: 0 | AT23: 0 | AU23: 0 | AV23: 0 | AW23: 0 | AX23: 0 | AY23: 0 | AZ23: 0 | BA23: 0 | BB23: 0 | BC23: 0 | BD23: 0 | BE23: 1 | BF23: 0 | BG23: 0 | BH23: 0 | BI23: 2 | BJ23: 0 | BL23: 0 | BM23: 0 | BN23: 0 | BO23: 0 | BP23: 0 | BQ23: 0 | BR23: 0 | BS23: 0 | BT23: 0 | BU23: 0 | BV23: 0 | BW23: 0 | BX23: 0 | BY23: 0 | BZ23: 0 | CA23: 0
B24: WE 6 | G24: 0 | H24: 0 | I24: =Gesamtübersicht!C9 -> 0 | J24: =G24*I24 -> 0 | K24: =(D24)*I24*G24 -> 0 | M24: 0 | N24: 0 | O24: 0 | P24: 0 | Q24: 0 | R24: 0 | S24: 0 | T24: 1 | U24: 0 | V24: 0 | W24: 0 | X24: 0 | Y24: 0 | Z24: 0 | AA24: 0 | AB24: 0 | AC24: 0 | AD24: 0 | AE24: 0 | AF24: 0 | AG24: 0 | AH24: 0 | AI24: 0 | AJ24: 1 | AK24: 0 | AL24: 0 | AM24: 0 | AN24: 0 | AO24: 0 | AP24: 0 | AQ24: 0 | AR24: 1 | AS24: 0 | AT24: 0 | AU24: 0 | AV24: 0 | AW24: =$AW$7/$J$57*J24 -> 0 | AX24: 0 | AY24: 0 | AZ24: 0 | BA24: 0 | BB24: 0 | BC24: 0 | BD24: 0 | BE24: 1 | BF24: 0 | BG24: 0 | BH24: 0 | BI24: 2 | BJ24: 0 | BL24: 0 | BM24: 0 | BN24: 0 | BO24: 0 | BP24: 0 | BQ24: 0 | BR24: 0 | BS24: 0 | BT24: 0 | BU24: 0 | BV24: 0 | BW24: 0 | BX24: 0 | BY24: 0 | BZ24: 0 | CA24: 0
G25: 0 | H25: 0 | J25: =G25*I24 -> 0 | K25: =(D25)*I24*G25 -> 0 | M25: 0 | N25: 0 | O25: 0 | P25: 0 | Q25: 0 | R25: 0 | S25: 0 | T25: 1 | U25: 0 | V25: 0 | W25: 0 | X25: 0 | Y25: 0 | Z25: 0 | AA25: 0 | AB25: 0 | AC25: 0 | AD25: 0 | AE25: 0 | AF25: 0 | AG25: 0 | AH25: 0 | AI25: 0 | AJ25: 1 | AK25: 0 | AL25: 0 | AM25: 0 | AN25: 0 | AO25: 0 | AP25: 0 | AQ25: 0 | AR25: 1 | AS25: 0 | AT25: 0 | AU25: 0 | AV25: 0 | AW25: 0 | AX25: 0 | AY25: 0 | AZ25: 0 | BA25: 0 | BB25: 0 | BC25: 0 | BD25: 0 | BE25: 1 | BF25: 0 | BG25: 0 | BH25: 0 | BI25: 2 | BJ25: 0 | BL25: 0 | BM25: 0 | BN25: 0 | BO25: 0 | BP25: 0 | BQ25: 0 | BR25: 0 | BS25: 0 | BT25: 0 | BU25: 0 | BV25: 0 | BW25: 0 | BX25: 0 | BY25: 0 | BZ25: 0 | CA25: 0
G26: 0 | H26: 0 | J26: =G26*I24 -> 0 | K26: =(D26)*I24*G26 -> 0 | M26: 0 | N26: 0 | O26: 0 | P26: 0 | Q26: 0 | R26: 0 | S26: 0 | T26: 1 | U26: 0 | V26: 0 | W26: 0 | X26: 0 | Y26: 0 | Z26: 0 | AA26: 0 | AB26: 0 | AC26: 0 | AD26: 0 | AE26: 0 | AF26: 0 | AG26: 0 | AH26: 0 | AI26: 0 | AJ26: 1 | AK26: 0 | AL26: 0 | AM26: 0 | AN26: 0 | AO26: 0 | AP26: 0 | AQ26: 0 | AR26: 1 | AS26: 0 | AT26: 0 | AU26: 0 | AV26: 0 | AW26: 0 | AX26: 0 | AY26: 0 | AZ26: 0 | BA26: 0 | BB26: 0 | BC26: 0 | BD26: 0 | BE26: 1 | BF26: 0 | BG26: 0 | BH26: 0 | BI26: 2 | BJ26: 0 | BL26: 0 | BM26: 0 | BN26: 0 | BO26: 0 | BP26: 0 | BQ26: 0 | BR26: 0 | BS26: 0 | BT26: 0 | BU26: 0 | BV26: 0 | BW26: 0 | BX26: 0 | BY26: 0 | BZ26: 0 | CA26: 0
B27: WE 7 | G27: 0 | H27: 0 | I27: =Gesamtübersicht!C10 -> 0 | J27: =G27*I27 -> 0 | K27: =(D27)*I27*G27 -> 0 | M27: 0 | N27: 0 | O27: 0 | P27: 0 | Q27: 0 | R27: 0 | S27: 0 | T27: 1 | U27: 0 | V27: 0 | W27: 0 | X27: 0 | Y27: 0 | Z27: 0 | AA27: 0 | AB27: 0 | AC27: 0 | AD27: 0 | AE27: 0 | AF27: 0 | AG27: 0 | AH27: 0 | AI27: 0 | AJ27: 1 | AK27: 0 | AL27: 0 | AM27: 0 | AN27: 0 | AO27: 0 | AP27: 0 | AQ27: 0 | AR27: 1 | AS27: 0 | AT27: 0 | AU27: 0 | AV27: 0 | AW27: 0 | AX27: 0 | AY27: 0 | AZ27: 0 | BA27: 0 | BB27: 0 | BC27: 0 | BD27: 0 | BE27: 1 | BF27: 0 | BG27: 0 | BH27: 0 | BI27: 2 | BJ27: 0 | BL27: 0 | BM27: 0 | BN27: 0 | BO27: 0 | BP27: 0 | BQ27: 0 | BR27: 0 | BS27: 0 | BT27: 0 | BU27: 0 | BV27: 0 | BW27: 0 | BX27: 0 | BY27: 0 | BZ27: 0 | CA27: 0
G28: 0 | H28: 0 | J28: =G28*I27 -> 0 | K28: =(D28)*I27*G28 -> 0 | M28: 0 | N28: 0 | O28: 0 | P28: 0 | Q28: 0 | R28: 0 | S28: 0 | T28: 1 | U28: 0 | V28: 0 | W28: 0 | X28: 0 | Y28: 0 | Z28: 0 | AA28: 0 | AB28: 0 | AC28: 0 | AD28: 0 | AE28: 0 | AF28: 0 | AG28: 0 | AH28: 0 | AI28: 0 | AJ28: 1 | AK28: 0 | AL28: 0 | AM28: 0 | AN28: 0 | AO28: 0 | AP28: 0 | AQ28: 0 | AR28: 1 | AS28: 0 | AT28: 0 | AU28: 0 | AV28: 0 | AW28: 0 | AX28: 0 | AY28: 0 | AZ28: 0 | BA28: 0 | BB28: 0 | BC28: 0 | BD28: 0 | BE28: 1 | BF28: 0 | BG28: 0 | BH28: 0 | BI28: 2 | BJ28: 0 | BL28: 0 | BM28: 0 | BN28: 0 | BO28: 0 | BP28: 0 | BQ28: 0 | BR28: 0 | BS28: 0 | BT28: 0 | BU28: 0 | BV28: 0 | BW28: 0 | BX28: 0 | BY28: 0 | BZ28: 0 | CA28: 0
G29: 0 | H29: 0 | J29: =G29*I27 -> 0 | K29: =(D29)*I27*G29 -> 0 | M29: 0 | N29: 0 | O29: 0 | P29: 0 | Q29: 0 | R29: 0 | S29: 0 | T29: 1 | U29: 0 | V29: 0 | W29: 0 | X29: 0 | Y29: 0 | Z29: 0 | AA29: 0 | AB29: 0 | AC29: 0 | AD29: 0 | AE29: 0 | AF29: 0 | AG29: 0 | AH29: 0 | AI29: 0 | AJ29: 1 | AK29: 0 | AL29: 0 | AM29: 0 | AN29: 0 | AO29: 0 | AP29: 0 | AQ29: 0 | AR29: 1 | AS29: 0 | AT29: 0 | AU29: 0 | AV29: 0 | AW29: 0 | AX29: 0 | AY29: 0 | AZ29: 0 | BA29: 0 | BB29: 0 | BC29: 0 | BD29: 0 | BE29: 1 | BF29: 0 | BG29: 0 | BH29: 0 | BI29: 2 | BJ29: 0 | BL29: 0 | BM29: 0 | BN29: 0 | BO29: 0 | BP29: 0 | BQ29: 0 | BR29: 0 | BS29: 0 | BT29: 0 | BU29: 0 | BV29: 0 | BW29: 0 | BX29: 0 | BY29: 0 | BZ29: 0 | CA29: 0
B30: WE 8 | G30: 0 | H30: 0 | I30: =Gesamtübersicht!C11 -> 0 | J30: =G30*I30 -> 0 | K30: =(D30)*I30*G30 -> 0 | M30: 0 | N30: 0 | O30: 0 | P30: 0 | Q30: 0 | R30: 0 | S30: 0 | T30: 1 | U30: 0 | V30: 0 | W30: 0 | X30: 0 | Y30: 0 | Z30: 0 | AA30: 0 | AB30: 0 | AC30: 0 | AD30: 0 | AE30: 0 | AF30: 0 | AG30: 0 | AH30: 0 | AI30: 0 | AJ30: 1 | AK30: 0 | AL30: 0 | AM30: 0 | AN30: 0 | AO30: 0 | AP30: 0 | AQ30: 0 | AR30: 1 | AS30: 0 | AT30: 0 | AU30: 0 | AV30: 0 | AW30: 0 | AX30: 0 | AY30: 0 | AZ30: 0 | BA30: 0 | BB30: 0 | BC30: 0 | BD30: 0 | BE30: 1 | BF30: 0 | BG30: 0 | BH30: 0 | BI30: 2 | BJ30: 0 | BL30: 0 | BM30: 0 | BN30: 0 | BO30: 0 | BP30: 0 | BQ30: 0 | BR30: 0 | BS30: 0 | BT30: 0 | BU30: 0 | BV30: 0 | BW30: 0 | BX30: 0 | BY30: 0 | BZ30: 0 | CA30: 0
G31: 0 | H31: 0 | J31: =G31*I30 -> 0 | K31: =(D31)*I30*G31 -> 0 | M31: 0 | N31: 0 | O31: 0 | P31: 0 | Q31: 0 | R31: 0 | S31: 0 | T31: 1 | U31: 0 | V31: 0 | W31: 0 | X31: 0 | Y31: 0 | Z31: 0 | AA31: 0 | AB31: 0 | AC31: 0 | AD31: 0 | AE31: 0 | AF31: 0 | AG31: 0 | AH31: 0 | AI31: 0 | AJ31: 1 | AK31: 0 | AL31: 0 | AM31: 0 | AN31: 0 | AO31: 0 | AP31: 0 | AQ31: 0 | AR31: 1 | AS31: 0 | AT31: 0 | AU31: 0 | AV31: 0 | AW31: 0 | AX31: 0 | AY31: 0 | AZ31: 0 | BA31: 0 | BB31: 0 | BC31: 0 | BD31: 0 | BE31: 1 | BF31: 0 | BG31: 0 | BH31: 0 | BI31: 2 | BJ31: 0 | BL31: 0 | BM31: 0 | BN31: 0 | BO31: 0 | BP31: 0 | BQ31: 0 | BR31: 0 | BS31: 0 | BT31: 0 | BU31: 0 | BV31: 0 | BW31: 0 | BX31: 0 | BY31: 0 | BZ31: 0 | CA31: 0
G32: 0 | H32: 0 | J32: =G32*I30 -> 0 | K32: =(D32)*I30*G32 -> 0 | M32: 0 | N32: 0 | O32: 0 | P32: 0 | Q32: 0 | R32: 0 | S32: 0 | T32: 1 | U32: 0 | V32: 0 | W32: 0 | X32: 0 | Y32: 0 | Z32: 0 | AA32: 0 | AB32: 0 | AC32: 0 | AD32: 0 | AE32: 0 | AF32: 0 | AG32: 0 | AH32: 0 | AI32: 0 | AJ32: =$AJ$9 -> 1 | AK32: 0 | AL32: 0 | AM32: 0 | AN32: 0 | AO32: 0 | AP32: 0 | AQ32: 0 | AR32: 1 | AS32: 0 | AT32: 0 | AU32: 0 | AV32: 0 | AW32: 0 | AX32: 0 | AY32: 0 | AZ32: 0 | BA32: 0 | BB32: 0 | BC32: 0 | BD32: 0 | BE32: 1 | BF32: 0 | BG32: 0 | BH32: 0 | BI32: 2 | BJ32: 0 | BL32: 0 | BM32: 0 | BN32: 0 | BO32: 0 | BP32: 0 | BQ32: 0 | BR32: 0 | BS32: 0 | BT32: 0 | BU32: 0 | BV32: 0 | BW32: 0 | BX32: 0 | BY32: 0 | BZ32: 0 | CA32: 0
B33: WE 9 | G33: 0 | H33: =D33*G33 -> 0 | I33: =Gesamtübersicht!C12 -> 0 | J33: =G33*I33 -> 0 | K33: =(D33)*I33*G33 -> 0 | M33: =($M$7/$J$57*J33) -> 0 | P33: =O33-N33 -> 0 | Q33: 0 | R33: =$N$7/$H$57*H33 -> 0 | S33: =$N$7/$J$57*J33 -> 0 | T33: 1 | U33: =IF(T33=1,Q33,IF(T33=2,R33,S33)) -> 0 | V33: 0 | W33: =$V$7/$H$57*H33 -> 0 | X33: =$V$7/$J$57*J33 -> 0 | Y33: =IF(T33=1,V33,IF(T33=2,W33,X33)) -> 0 | AB33: =AA33-Z33 -> 0 | AC33: 0 | AF33: =AE33-AD33 -> 0 | AG33: 0 | AH33: =$AD$7/$H$57*H33 -> 0 | AI33: =$AD$7/$J$57*J33 -> 0 | AJ33: 1 | AK33: =IF(AJ33=1,AG33,IF(AJ33=2,AH33,AI33)) -> 0 | AN33: =AM33-AL33 -> 0 | AO33: 0 | AP33: =$AL$7/$H$57*H33 -> 0 | AQ33: =$AL$7/$J$57*J33 -> 0 | AR33: 1 | AS33: =IF(AR33=1,AO33,IF(AR33=2,AP33,AQ33)) -> 0 | AT33: =$AT$7/$J$57*J33 -> 0 | AU33: =$AU$7/$J$57*J33 -> 0 | AV33: =$AV$7/$J$57*J33 -> 0 | AW33: =$AW$7/$J$57*J33 -> 0 | AX33: =$AX$7/$J$57*J33 -> 0 | AY33: =$AY$7/$J$57*J33 -> 0 | AZ33: =$AZ$7/$J$57*J33 -> 0 | BA33: =$BA$7/$J$57*J33 -> 0 | BB33: =IF(C33>"",$BB$7/$G$57*G33,0) -> 0 | BC33: =IF(C33>"",$BC$7/$G$57*G33,0) -> 0 | BD33: =$BC$7/$H$57*H33 -> 0 | BE33: 1 | BF33: =IF(BE33=1,BC33,BD33) -> 0 | BG33: =IF(C33>"",$BG$7/$G$57*G33,0) -> 0 | BH33: =$BG$7/$H$57*H33 -> 0 | BI33: 2 | BJ33: =IF(BI33=1,BG33,BH33) -> 0 | BL33: =M33+U33+Y33+AC33+AK33+AS33+AT33+AU33+AV33+AW33+AX33+AY33+AZ33+BA33+BB33+BF33+BJ33 -> 0 | BM33: 0 | BZ33: =SUM(BN33:BY33) -> 0 | CA33: =SUM(BL33-BZ33)*-1 -> 0
G34: =F34-E34+IF(C34>"",1,0) -> 0 | H34: 0 | J34: =G34*I33 -> 0 | K34: =(D34)*I33*G34 -> 0 | M34: 0 | P34: 0 | Q34: 0 | R34: 0 | S34: 0 | T34: 1 | U34: 0 | V34: 0 | W34: 0 | X34: 0 | Y34: 0 | AB34: 0 | AC34: 0 | AF34: 0 | AG34: 0 | AH34: 0 | AI34: 0 | AJ34: 1 | AK34: 0 | AN34: 0 | AO34: 0 | AP34: 0 | AQ34: 0 | AR34: 1 | AS34: 0 | AT34: 0 | AU34: 0 | AV34: 0 | AW34: 0 | AX34: 0 | AY34: 0 | AZ34: 0 | BA34: 0 | BB34: 0 | BC34: 0 | BD34: 0 | BE34: 1 | BF34: 0 | BG34: 0 | BH34: 0 | BI34: 2 | BJ34: 0 | BL34: 0 | BM34: 0 | BZ34: 0 | CA34: 0
G35: 0 | H35: 0 | J35: =G35*I33 -> 0 | K35: =(D35)*I33*G35 -> 0 | M35: 0 | P35: 0 | Q35: 0 | R35: 0 | S35: 0 | T35: 1 | U35: 0 | V35: 0 | W35: 0 | X35: 0 | Y35: 0 | AB35: 0 | AC35: 0 | AF35: 0 | AG35: 0 | AH35: 0 | AI35: 0 | AJ35: =$AJ$9 -> 1 | AK35: 0 | AN35: 0 | AO35: 0 | AP35: 0 | AQ35: 0 | AR35: 1 | AS35: 0 | AT35: 0 | AU35: 0 | AV35: 0 | AW35: 0 | AX35: 0 | AY35: 0 | AZ35: 0 | BA35: 0 | BB35: 0 | BC35: 0 | BD35: 0 | BE35: 1 | BF35: 0 | BG35: 0 | BH35: 0 | BI35: 2 | BJ35: 0 | BL35: 0 | BM35: 0 | BZ35: 0 | CA35: 0
B36: WE 10 | G36: 0 | H36: 0 | I36: =Gesamtübersicht!C13 -> 0 | J36: =G36*I36 -> 0 | K36: =(D36)*I36*G36 -> 0 | M36: 0 | P36: 0 | Q36: 0 | R36: 0 | S36: 0 | T36: 1 | U36: 0 | V36: 0 | W36: 0 | X36: 0 | Y36: 0 | AB36: 0 | AC36: 0 | AF36: 0 | AG36: 0 | AH36: 0 | AI36: 0 | AJ36: 1 | AK36: 0 | AN36: 0 | AO36: 0 | AP36: 0 | AQ36: 0 | AR36: 1 | AS36: 0 | AT36: 0 | AU36: 0 | AV36: 0 | AW36: 0 | AX36: 0 | AY36: 0 | AZ36: 0 | BA36: 0 | BB36: 0 | BC36: 0 | BD36: 0 | BE36: 1 | BF36: 0 | BG36: 0 | BH36: 0 | BI36: 2 | BJ36: 0 | BL36: 0 | BM36: 0 | BZ36: 0 | CA36: 0
G37: 0 | H37: 0 | J37: =G37*I36 -> 0 | K37: =(D37)*I36*G37 -> 0 | M37: 0 | P37: 0 | Q37: 0 | R37: 0 | S37: 0 | T37: 1 | U37: 0 | V37: 0 | W37: 0 | X37: 0 | Y37: 0 | AB37: 0 | AC37: 0 | AF37: 0 | AG37: 0 | AH37: 0 | AI37: 0 | AJ37: 1 | AK37: 0 | AN37: 0 | AO37: 0 | AP37: 0 | AQ37: 0 | AR37: 1 | AS37: 0 | AT37: 0 | AU37: 0 | AV37: 0 | AW37: 0 | AX37: 0 | AY37: 0 | AZ37: 0 | BA37: 0 | BB37: 0 | BC37: 0 | BD37: 0 | BE37: 1 | BF37: 0 | BG37: 0 | BH37: 0 | BI37: 2 | BJ37: 0 | BL37: 0 | BM37: 0 | BZ37: 0 | CA37: 0
G38: 0 | H38: 0 | J38: =G38*I36 -> 0 | K38: =(D38)*I36*G38 -> 0 | M38: 0 | P38: 0 | Q38: 0 | R38: 0 | S38: 0 | T38: 1 | U38: 0 | V38: 0 | W38: 0 | X38: 0 | Y38: 0 | AB38: 0 | AC38: 0 | AF38: 0 | AG38: 0 | AH38: 0 | AI38: 0 | AJ38: =$AJ$9 -> 1 | AK38: 0 | AN38: 0 | AO38: 0 | AP38: 0 | AQ38: 0 | AR38: 1 | AS38: 0 | AT38: 0 | AU38: 0 | AV38: 0 | AW38: 0 | AX38: 0 | AY38: 0 | AZ38: 0 | BA38: 0 | BB38: 0 | BC38: 0 | BD38: 0 | BE38: 1 | BF38: 0 | BG38: 0 | BH38: 0 | BI38: 2 | BJ38: 0 | BL38: 0 | BM38: 0 | BZ38: 0 | CA38: 0
B39: WE 11 | G39: 0 | H39: 0 | I39: =Gesamtübersicht!C14 -> 0 | J39: =G39*I39 -> 0 | K39: =(D39)*I39*G39 -> 0 | M39: 0 | P39: 0 | Q39: 0 | R39: 0 | S39: 0 | T39: 1 | U39: 0 | V39: 0 | W39: 0 | X39: 0 | Y39: 0 | AB39: 0 | AC39: 0 | AF39: 0 | AG39: 0 | AH39: 0 | AI39: 0 | AJ39: 1 | AK39: 0 | AN39: 0 | AO39: 0 | AP39: 0 | AQ39: 0 | AR39: 1 | AS39: 0 | AT39: 0 | AU39: 0 | AV39: 0 | AW39: 0 | AX39: 0 | AY39: 0 | AZ39: 0 | BA39: 0 | BB39: 0 | BC39: 0 | BD39: 0 | BE39: 1 | BF39: 0 | BG39: 0 | BH39: 0 | BI39: 2 | BJ39: 0 | BL39: 0 | BM39: 0 | BZ39: 0 | CA39: 0
G40: 0 | H40: 0 | J40: =G40*I39 -> 0 | K40: =(D40)*I39*G40 -> 0 | M40: 0 | P40: 0 | Q40: 0 | R40: 0 | S40: =$N$7/$J$57*J40 -> 0 | T40: 1 | U40: 0 | V40: 0 | W40: 0 | X40: 0 | Y40: 0 | AB40: 0 | AC40: 0 | AF40: 0 | AG40: 0 | AH40: 0 | AI40: 0 | AJ40: 1 | AK40: 0 | AN40: 0 | AO40: 0 | AP40: 0 | AQ40: 0 | AR40: 1 | AS40: 0 | AT40: 0 | AU40: 0 | AV40: 0 | AW40: 0 | AX40: 0 | AY40: 0 | AZ40: 0 | BA40: 0 | BB40: 0 | BC40: 0 | BD40: 0 | BE40: 1 | BF40: 0 | BG40: 0 | BH40: 0 | BI40: 2 | BJ40: 0 | BL40: 0 | BM40: 0 | BZ40: 0 | CA40: 0
G41: 0 | H41: 0 | J41: =G41*I39 -> 0 | K41: =(D41)*I39*G41 -> 0 | M41: 0 | P41: 0 | Q41: 0 | R41: 0 | S41: 0 | T41: 1 | U41: 0 | V41: 0 | W41: 0 | X41: 0 | Y41: 0 | AB41: 0 | AC41: 0 | AF41: 0 | AG41: 0 | AH41: 0 | AI41: 0 | AJ41: =$AJ$9 -> 1 | AK41: 0 | AN41: 0 | AO41: 0 | AP41: 0 | AQ41: 0 | AR41: 1 | AS41: 0 | AT41: 0 | AU41: 0 | AV41: 0 | AW41: 0 | AX41: 0 | AY41: 0 | AZ41: 0 | BA41: 0 | BB41: 0 | BC41: 0 | BD41: 0 | BE41: 1 | BF41: 0 | BG41: 0 | BH41: 0 | BI41: 2 | BJ41: 0 | BL41: 0 | BM41: 0 | BZ41: 0 | CA41: 0
B42: WE 12 | G42: 0 | H42: 0 | I42: =Gesamtübersicht!C15 -> 0 | J42: =G42*I42 -> 0 | K42: =(D42)*I42*G42 -> 0 | M42: 0 | P42: 0 | Q42: 0 | R42: 0 | S42: 0 | T42: 1 | U42: 0 | V42: 0 | W42: 0 | X42: 0 | Y42: 0 | AB42: 0 | AC42: 0 | AF42: 0 | AG42: 0 | AH42: 0 | AI42: 0 | AJ42: 1 | AK42: 0 | AN42: 0 | AO42: 0 | AP42: 0 | AQ42: 0 | AR42: 1 | AS42: 0 | AT42: 0 | AU42: 0 | AV42: 0 | AW42: 0 | AX42: 0 | AY42: 0 | AZ42: 0 | BA42: 0 | BB42: 0 | BC42: 0 | BD42: 0 | BE42: 1 | BF42: 0 | BG42: 0 | BH42: 0 | BI42: 2 | BJ42: 0 | BL42: 0 | BM42: 0 | BZ42: 0 | CA42: 0
G43: 0 | H43: 0 | J43: =G43*I42 -> 0 | K43: =(D43)*I42*G43 -> 0 | M43: 0 | P43: 0 | Q43: 0 | R43: 0 | S43: 0 | T43: 1 | U43: 0 | V43: 0 | W43: 0 | X43: 0 | Y43: 0 | AB43: 0 | AC43: 0 | AF43: 0 | AG43: 0 | AH43: 0 | AI43: 0 | AJ43: 1 | AK43: 0 | AN43: 0 | AO43: 0 | AP43: 0 | AQ43: 0 | AR43: 1 | AS43: 0 | AT43: 0 | AU43: 0 | AV43: 0 | AW43: 0 | AX43: 0 | AY43: 0 | AZ43: 0 | BA43: 0 | BB43: 0 | BC43: 0 | BD43: 0 | BE43: 1 | BF43: 0 | BG43: 0 | BH43: 0 | BI43: 2 | BJ43: 0 | BL43: 0 | BM43: 0 | BZ43: 0 | CA43: 0
G44: 0 | H44: 0 | J44: =G44*I42 -> 0 | K44: =(D44)*I42*G44 -> 0 | M44: 0 | P44: 0 | Q44: 0 | R44: 0 | S44: 0 | T44: 1 | U44: 0 | V44: 0 | W44: 0 | X44: 0 | Y44: 0 | AB44: 0 | AC44: 0 | AF44: 0 | AG44: 0 | AH44: 0 | AI44: 0 | AJ44: =$AJ$9 -> 1 | AK44: 0 | AN44: 0 | AO44: 0 | AP44: 0 | AQ44: 0 | AR44: 1 | AS44: 0 | AT44: 0 | AU44: 0 | AV44: 0 | AW44: 0 | AX44: 0 | AY44: 0 | AZ44: 0 | BA44: 0 | BB44: 0 | BC44: 0 | BD44: 0 | BE44: 1 | BF44: 0 | BG44: 0 | BH44: 0 | BI44: 2 | BJ44: 0 | BL44: 0 | BM44: 0 | BZ44: 0 | CA44: 0
B45: WE 13 | G45: 0 | H45: =D45*G45 -> 0 | I45: =Gesamtübersicht!C16 -> 0 | J45: =G45*I45 -> 0 | K45: =(D45)*I45*G45 -> 0 | M45: =($M$7/$J$57*J45) -> 0 | P45: =O45-N45 -> 0 | Q45: 0 | R45: =$N$7/$H$57*H45 -> 0 | S45: =$N$7/$J$57*J45 -> 0 | T45: 1 | U45: =IF(T45=1,Q45,IF(T45=2,R45,S45)) -> 0 | V45: 0 | W45: =$V$7/$H$57*H45 -> 0 | X45: =$V$7/$J$57*J45 -> 0 | Y45: =IF(T45=1,V45,IF(T45=2,W45,X45)) -> 0 | AB45: =AA45-Z45 -> 0 | AC45: 0 | AF45: =AE45-AD45 -> 0 | AG45: 0 | AH45: =$AD$7/$H$57*H45 -> 0 | AI45: =$AD$7/$J$57*J45 -> 0 | AJ45: 1 | AK45: =IF(AJ45=1,AG45,IF(AJ45=2,AH45,AI45)) -> 0 | AN45: =AM45-AL45 -> 0 | AO45: 0 | AP45: =$AL$7/$H$57*H45 -> 0 | AQ45: =$AL$7/$J$57*J45 -> 0 | AR45: 1 | AS45: =IF(AR45=1,AO45,IF(AR45=2,AP45,AQ45)) -> 0 | AT45: =$AT$7/$J$57*J45 -> 0 | AU45: =$AU$7/$J$57*J45 -> 0 | AV45: =$AV$7/$J$57*J45 -> 0 | AW45: =$AW$7/$J$57*J45 -> 0 | AX45: =$AX$7/$J$57*J45 -> 0 | AY45: =$AY$7/$J$57*J45 -> 0 | AZ45: =$AZ$7/$J$57*J45 -> 0 | BA45: =$BA$7/$J$57*J45 -> 0 | BB45: =IF(C45>"",$BB$7/$G$57*G45,0) -> 0 | BC45: =IF(C45>"",$BC$7/$G$57*G45,0) -> 0 | BD45: =$BC$7/$H$57*H45 -> 0 | BE45: 1 | BF45: =IF(BE45=1,BC45,BD45) -> 0 | BG45: =IF(C45>"",$BG$7/$G$57*G45,0) -> 0 | BH45: =$BG$7/$H$57*H45 -> 0 | BI45: 2 | BJ45: =IF(BI45=1,BG45,BH45) -> 0 | BL45: =M45+U45+Y45+AC45+AK45+AS45+AT45+AU45+AV45+AW45+AX45+AY45+AZ45+BA45+BB45+BF45+BJ45 -> 0 | BM45: 0 | BZ45: =SUM(BN45:BY45) -> 0 | CA45: =SUM(BL45-BZ45)*-1 -> 0
G46: =F46-E46+IF(C46>"",1,0) -> 0 | H46: 0 | J46: =G46*I45 -> 0 | K46: =(D46)*I45*G46 -> 0 | M46: 0 | P46: 0 | Q46: 0 | R46: 0 | S46: 0 | T46: 1 | U46: 0 | V46: 0 | W46: 0 | X46: 0 | Y46: 0 | AB46: 0 | AC46: 0 | AF46: 0 | AG46: 0 | AH46: 0 | AI46: 0 | AJ46: 1 | AK46: 0 | AN46: 0 | AO46: 0 | AP46: 0 | AQ46: 0 | AR46: 1 | AS46: 0 | AT46: 0 | AU46: 0 | AV46: 0 | AW46: 0 | AX46: 0 | AY46: 0 | AZ46: 0 | BA46: 0 | BB46: 0 | BC46: 0 | BD46: 0 | BE46: 1 | BF46: 0 | BG46: 0 | BH46: 0 | BI46: 2 | BJ46: 0 | BL46: 0 | BM46: 0 | BZ46: 0 | CA46: 0
G47: 0 | H47: 0 | J47: =G47*I45 -> 0 | K47: =(D47)*I45*G47 -> 0 | M47: 0 | P47: 0 | Q47: 0 | R47: 0 | S47: 0 | T47: 1 | U47: 0 | V47: 0 | W47: 0 | X47: 0 | Y47: 0 | AB47: 0 | AC47: 0 | AF47: 0 | AG47: 0 | AH47: 0 | AI47: 0 | AJ47: =$AJ$9 -> 1 | AK47: 0 | AN47: 0 | AO47: 0 | AP47: 0 | AQ47: 0 | AR47: 1 | AS47: 0 | AT47: 0 | AU47: 0 | AV47: 0 | AW47: 0 | AX47: 0 | AY47: 0 | AZ47: 0 | BA47: 0 | BB47: 0 | BC47: 0 | BD47: 0 | BE47: 1 | BF47: 0 | BG47: 0 | BH47: 0 | BI47: 2 | BJ47: 0 | BL47: 0 | BM47: 0 | BZ47: 0 | CA47: 0
B48: WE 14 | G48: 0 | H48: 0 | I48: =Gesamtübersicht!C17 -> 0 | J48: =G48*I48 -> 0 | K48: =(D48)*I48*G48 -> 0 | M48: 0 | P48: 0 | Q48: 0 | R48: 0 | S48: 0 | T48: 1 | U48: 0 | V48: 0 | W48: 0 | X48: 0 | Y48: 0 | AB48: 0 | AC48: 0 | AF48: 0 | AG48: 0 | AH48: 0 | AI48: 0 | AJ48: 1 | AK48: 0 | AN48: 0 | AO48: 0 | AP48: 0 | AQ48: 0 | AR48: 1 | AS48: 0 | AT48: 0 | AU48: 0 | AV48: 0 | AW48: 0 | AX48: 0 | AY48: 0 | AZ48: 0 | BA48: 0 | BB48: 0 | BC48: 0 | BD48: 0 | BE48: 1 | BF48: 0 | BG48: 0 | BH48: 0 | BI48: 2 | BJ48: 0 | BL48: 0 | BM48: 0 | BZ48: 0 | CA48: 0
G49: 0 | H49: 0 | J49: =G49*I48 -> 0 | K49: =(D49)*I48*G49 -> 0 | M49: 0 | P49: 0 | Q49: 0 | R49: 0 | S49: 0 | T49: 1 | U49: 0 | V49: 0 | W49: 0 | X49: 0 | Y49: 0 | AB49: 0 | AC49: 0 | AF49: 0 | AG49: 0 | AH49: 0 | AI49: 0 | AJ49: 1 | AK49: 0 | AN49: 0 | AO49: 0 | AP49: 0 | AQ49: 0 | AR49: 1 | AS49: 0 | AT49: 0 | AU49: 0 | AV49: 0 | AW49: 0 | AX49: 0 | AY49: 0 | AZ49: 0 | BA49: 0 | BB49: 0 | BC49: 0 | BD49: 0 | BE49: 1 | BF49: 0 | BG49: 0 | BH49: 0 | BI49: 2 | BJ49: 0 | BL49: 0 | BM49: 0 | BZ49: 0 | CA49: 0
G50: 0 | H50: 0 | J50: =G50*I48 -> 0 | K50: =(D50)*I48*G50 -> 0 | M50: 0 | P50: 0 | Q50: 0 | R50: 0 | S50: 0 | T50: 1 | U50: 0 | V50: 0 | W50: 0 | X50: 0 | Y50: 0 | AB50: 0 | AC50: 0 | AF50: 0 | AG50: 0 | AH50: 0 | AI50: 0 | AJ50: =$AJ$9 -> 1 | AK50: 0 | AN50: 0 | AO50: 0 | AP50: 0 | AQ50: 0 | AR50: 1 | AS50: 0 | AT50: 0 | AU50: 0 | AV50: 0 | AW50: 0 | AX50: 0 | AY50: 0 | AZ50: 0 | BA50: 0 | BB50: 0 | BC50: 0 | BD50: 0 | BE50: 1 | BF50: 0 | BG50: 0 | BH50: 0 | BI50: 2 | BJ50: 0 | BL50: 0 | BM50: 0 | BZ50: 0 | CA50: 0
B51: WE 15 | G51: 0 | H51: 0 | I51: =Gesamtübersicht!C18 -> 0 | J51: =G51*I51 -> 0 | K51: =(D51)*I51*G51 -> 0 | M51: 0 | P51: 0 | Q51: 0 | R51: 0 | S51: 0 | T51: 1 | U51: 0 | V51: 0 | W51: 0 | X51: 0 | Y51: 0 | AB51: 0 | AC51: 0 | AF51: 0 | AG51: 0 | AH51: 0 | AI51: 0 | AJ51: 1 | AK51: 0 | AN51: 0 | AO51: 0 | AP51: 0 | AQ51: 0 | AR51: 1 | AS51: 0 | AT51: 0 | AU51: 0 | AV51: 0 | AW51: 0 | AX51: 0 | AY51: 0 | AZ51: 0 | BA51: 0 | BB51: 0 | BC51: 0 | BD51: 0 | BE51: 1 | BF51: 0 | BG51: 0 | BH51: 0 | BI51: 2 | BJ51: 0 | BL51: 0 | BM51: 0 | BZ51: 0 | CA51: 0
G52: 0 | H52: 0 | J52: =G52*I51 -> 0 | K52: =(D52)*I51*G52 -> 0 | M52: 0 | P52: 0 | Q52: 0 | R52: 0 | S52: 0 | T52: 1 | U52: 0 | V52: 0 | W52: 0 | X52: 0 | Y52: 0 | AB52: 0 | AC52: 0 | AF52: 0 | AG52: 0 | AH52: 0 | AI52: 0 | AJ52: 1 | AK52: 0 | AN52: 0 | AO52: 0 | AP52: 0 | AQ52: 0 | AR52: 1 | AS52: 0 | AT52: 0 | AU52: 0 | AV52: 0 | AW52: 0 | AX52: 0 | AY52: 0 | AZ52: 0 | BA52: 0 | BB52: 0 | BC52: 0 | BD52: 0 | BE52: 1 | BF52: 0 | BG52: 0 | BH52: 0 | BI52: 2 | BJ52: 0 | BL52: 0 | BM52: 0 | BZ52: 0 | CA52: 0
G53: 0 | H53: 0 | J53: =G53*I51 -> 0 | K53: =(D53)*I51*G53 -> 0 | M53: 0 | P53: 0 | Q53: 0 | R53: 0 | S53: 0 | T53: 1 | U53: 0 | V53: 0 | W53: 0 | X53: 0 | Y53: 0 | AB53: 0 | AC53: 0 | AF53: 0 | AG53: 0 | AH53: 0 | AI53: 0 | AJ53: =$AJ$9 -> 1 | AK53: 0 | AN53: 0 | AO53: 0 | AP53: 0 | AQ53: 0 | AR53: 1 | AS53: 0 | AT53: 0 | AU53: 0 | AV53: 0 | AW53: 0 | AX53: 0 | AY53: 0 | AZ53: 0 | BA53: 0 | BB53: 0 | BC53: 0 | BD53: 0 | BE53: 1 | BF53: 0 | BG53: 0 | BH53: 0 | BI53: 2 | BJ53: 0 | BL53: 0 | BM53: 0 | BZ53: 0 | CA53: 0
B54: WE 16 | G54: 0 | H54: 0 | I54: =Gesamtübersicht!C19 -> 0 | J54: =G54*I54 -> 0 | K54: =(D54)*I54*G54 -> 0 | M54: 0 | P54: 0 | Q54: 0 | R54: 0 | S54: 0 | T54: 1 | U54: 0 | V54: 0 | W54: 0 | X54: 0 | Y54: 0 | AB54: 0 | AC54: 0 | AF54: 0 | AG54: 0 | AH54: 0 | AI54: 0 | AJ54: 1 | AK54: 0 | AN54: 0 | AO54: 0 | AP54: 0 | AQ54: 0 | AR54: 1 | AS54: 0 | AT54: 0 | AU54: 0 | AV54: 0 | AW54: 0 | AX54: 0 | AY54: 0 | AZ54: 0 | BA54: 0 | BB54: 0 | BC54: 0 | BD54: 0 | BE54: 1 | BF54: 0 | BG54: 0 | BH54: 0 | BI54: 2 | BJ54: 0 | BL54: 0 | BM54: 0 | BZ54: 0 | CA54: 0
G55: 0 | H55: 0 | J55: =G55*I54 -> 0 | K55: =(D55)*I54*G55 -> 0 | M55: 0 | P55: 0 | Q55: 0 | R55: 0 | S55: 0 | T55: 1 | U55: 0 | V55: 0 | W55: 0 | X55: 0 | Y55: 0 | AB55: 0 | AC55: 0 | AF55: 0 | AG55: 0 | AH55: 0 | AI55: 0 | AJ55: 1 | AK55: 0 | AN55: 0 | AO55: 0 | AP55: 0 | AQ55: 0 | AR55: 1 | AS55: 0 | AT55: 0 | AU55: 0 | AV55: 0 | AW55: 0 | AX55: 0 | AY55: 0 | AZ55: 0 | BA55: 0 | BB55: 0 | BC55: 0 | BD55: 0 | BE55: 1 | BF55: 0 | BG55: 0 | BH55: 0 | BI55: 2 | BJ55: 0 | BL55: 0 | BM55: 0 | BZ55: 0 | CA55: 0
G56: 0 | H56: 0 | J56: =G56*I54 -> 0 | K56: =(D56)*I54*G56 -> 0 | M56: 0 | P56: 0 | Q56: 0 | R56: 0 | S56: 0 | T56: 1 | U56: 0 | V56: 0 | W56: 0 | X56: 0 | Y56: 0 | AB56: 0 | AC56: 0 | AF56: 0 | AG56: 0 | AH56: 0 | AI56: 0 | AJ56: =$AJ$9 -> 1 | AK56: 0 | AN56: 0 | AO56: 0 | AP56: 0 | AQ56: 0 | AR56: 1 | AS56: 0 | AT56: 0 | AU56: 0 | AV56: 0 | AW56: 0 | AX56: 0 | AY56: 0 | AZ56: 0 | BA56: 0 | BB56: 0 | BC56: 0 | BD56: 0 | BE56: 1 | BF56: 0 | BG56: 0 | BH56: 0 | BI56: 2 | BJ56: 0 | BL56: 0 | BM56: 0 | BZ56: 0 | CA56: 0
B57: (Prüf) Summen: | D57: =SUM(D9:D56) -> 16 | G57: =SUM(G9:G56) -> 1460 | H57: =SUM(H9:H56) -> 3434 | I57: =SUM(I9+I12+I15+I18+I21+I24+I27+I30+I33+I36+I39+I42+I45+I48+I51+I54) -> 394.3 | J57: =SUM(J9:J56) -> 143919.5 | K57: =SUM(K9:L56) -> 326415.2 | M57: =SUM(M9:M56) -> 2564 | P57: =SUM(P9:P56) -> 3375 | Q57: =SUM(Q9:Q56) -> 600 | R57: =SUM(R9:R56) -> 600 | S57: =SUM(S9:S56) -> 600 | U57: =SUM(U9:U56) -> 600 | V57: =SUM(V9:V56) -> 500 | W57: =SUM(W9:W56) -> 500 | X57: =SUM(X9:X56) -> 500 | Y57: =SUM(Y9:Y56) -> 500 | AB57: =SUM(AB9:AB56) -> 0 | AC57: =SUM(AC9:AC56) -> 0 | AF57: =SUM(AF9:AF56) -> 0 | AG57: =SUM(AG9:AG56) -> 0 | AH57: =SUM(AH9:AH56) -> 0 | AI57: =SUM(AI9:AI56) -> 0 | AK57: =SUM(AK9:AK56) -> 0 | AN57: =SUM(AN9:AN56) -> 0 | AO57: =SUM(AO9:AO56) -> 0 | AP57: =SUM(AP9:AP56) -> 0 | AQ57: =SUM(AQ9:AQ56) -> 0 | AS57: =SUM(AS9:AS56) -> 0 | AT57: 1094 | AU57: 678 | AV57: 100 | AW57: 350 | AX57: 100 | AY57: 200 | AZ57: 1000 | BA57: 300 | BB57: 400 | BC57: 100 | BD57: 100 | BF57: =SUM(BF9:BF56) -> 100 | BG57: =SUM(BG9:BG56) -> 200 | BH57: =SUM(BH9:BH56) -> 200 | BJ57: =SUM(BJ9:BJ55) -> 200 | BL57: =SUM(BL9:BL56) -> 8186 | BM57: 691.8321893 | BN57: 740 | BO57: 740 | BP57: 740 | BQ57: 740 | BR57: 740 | BS57: 740 | BT57: 740 | BU57: 740 | BV57: 740 | BW57: 740 | BX57: 740 | BY57: 740 | BZ57: 8880 | CA57: 694

Sheet Gesamtübersicht
B2: Betriebskostenabrechnung | E2: Musterstr. 11 | H2: 12345 Musterstadt
C3: qm | D3: 1000 | E3: Mieter | F3: Personentage | G3: Nachmieter 1 | H3: Personentage | I3: Nachmieter 2 | J3: Personentage
B4: WE 1 | C4: 94.2 | D4: =$D$20/$C$20*C4 -> 238.9043875 | E4: =Wohneinheiten!C9 -> Hans Mustermann | F4: =Wohneinheiten!H9 -> 90 | G4: =Wohneinheiten!C10 -> Nachmieter 1 | H4: =Wohneinheiten!H10 -> 428 | I4: =Wohneinheiten!C11 -> Nachmieter 2 | J4: =Wohneinheiten!H11 -> 183
B5: WE 2 | C5: 138 | D5: =$D$20/$C$20*C5 -> 349.9873193 | E5: =Wohneinheiten!C12 -> Renate Musterfrau | F5: =Wohneinheiten!H12 -> 730 | G5: =Wohneinheiten!C13 -> 0 | H5: =Wohneinheiten!H13 -> 0 | I5: =Wohneinheiten!C14 -> 0 | J5: =Wohneinheiten!H14 -> 0
B6: WE 3 | C6: 66.6 | D6: 168.9069237 | E6: =Wohneinheiten!C15 -> Hans Testperson | F6: =Wohneinheiten!H15 -> 1095 | G6: =Wohneinheiten!C16 -> 0 | H6: =Wohneinheiten!H16 -> 0 | I6: =Wohneinheiten!C17 -> 0 | J6: =Wohneinheiten!H17 -> 0
B7: WE 4 | C7: 95.5 | D7: 242.2013695 | E7: =Wohneinheiten!C18 -> Renate Testperson | F7: =Wohneinheiten!H18 -> 724 | G7: =Wohneinheiten!C19 -> Nachmieter 3 | H7: =Wohneinheiten!H19 -> 184 | I7: =Wohneinheiten!C20 -> 0 | J7: =Wohneinheiten!H20 -> 0
B8: WE 5 | C8: 0 | D8: 0 | E8: =Wohneinheiten!C21 -> 0 | F8: =Wohneinheiten!H21 -> 0 | G8: =Wohneinheiten!C22 -> 0 | H8: =Wohneinheiten!H22 -> 0 | I8: =Wohneinheiten!C23 -> 0 | J8: =Wohneinheiten!H23 -> 0
B9: WE 6 | C9: 0 | D9: 0 | E9: =Wohneinheiten!C24 -> 0 | F9: =Wohneinheiten!H24 -> 0 | G9: =Wohneinheiten!C25 -> 0 | H9: =Wohneinheiten!H25 -> 0 | I9: =Wohneinheiten!C26 -> 0 | J9: =Wohneinheiten!H26 -> 0
B10: WE 7 | C10: 0 | D10: 0 | E10: =Wohneinheiten!C27 -> 0 | F10: =Wohneinheiten!H27 -> 0 | G10: =Wohneinheiten!C28 -> 0 | H10: =Wohneinheiten!H28 -> 0 | I10: =Wohneinheiten!C29 -> 0 | J10: =Wohneinheiten!H29 -> 0
B11: WE 8 | C11: 0 | D11: 0 | E11: =Wohneinheiten!C30 -> 0 | F11: =Wohneinheiten!H30 -> 0 | G11: =Wohneinheiten!C31 -> 0 | H11: =Wohneinheiten!H31 -> 0 | I11: =Wohneinheiten!C32 -> 0 | J11: =Wohneinheiten!H32 -> 0
B12: WE 9 | C12: 0 | D12: 0 | E12: =Wohneinheiten!C33 -> 0 | F12: =Wohneinheiten!H33 -> 0 | G12: =Wohneinheiten!C34 -> 0 | H12: =Wohneinheiten!H34 -> 0 | I12: =Wohneinheiten!C35 -> 0 | J12: =Wohneinheiten!H35 -> 0
B13: WE 10 | C13: 0 | D13: 0 | E13: =Wohneinheiten!C36 -> 0 | F13: =Wohneinheiten!H36 -> 0 | G13: =Wohneinheiten!C37 -> 0 | H13: =Wohneinheiten!H37 -> 0 | I13: =Wohneinheiten!C38 -> 0 | J13: =Wohneinheiten!H38 -> 0
B14: WE 11 | C14: 0 | D14: 0 | E14: =Wohneinheiten!C39 -> 0 | F14: =Wohneinheiten!H39 -> 0 | G14: =Wohneinheiten!C40 -> 0 | H14: =Wohneinheiten!H40 -> 0 | I14: =Wohneinheiten!C41 -> 0 | J14: =Wohneinheiten!H41 -> 0
B15: WE 12 | C15: 0 | D15: 0 | E15: =Wohneinheiten!C42 -> 0 | F15: =Wohneinheiten!H42 -> 0 | G15: =Wohneinheiten!C43 -> 0 | H15: =Wohneinheiten!H43 -> 0 | I15: =Wohneinheiten!C44 -> 0 | J15: =Wohneinheiten!H44 -> 0
B16: WE 13 | C16: 0 | D16: 0 | E16: =Wohneinheiten!C45 -> 0 | F16: =Wohneinheiten!H45 -> 0 | G16: =Wohneinheiten!C46 -> 0 | H16: =Wohneinheiten!H46 -> 0 | I16: =Wohneinheiten!C47 -> 0 | J16: =Wohneinheiten!H47 -> 0
B17: WE 14 | C17: 0 | D17: 0 | E17: =Wohneinheiten!C48 -> 0 | F17: =Wohneinheiten!H48 -> 0 | G17: =Wohneinheiten!C49 -> 0 | H17: =Wohneinheiten!H49 -> 0 | I17: =Wohneinheiten!C50 -> 0 | J17: =Wohneinheiten!H50 -> 0
B18: WE 15 | C18: 0 | D18: 0 | E18: =Wohneinheiten!C51 -> 0 | F18: =Wohneinheiten!H51 -> 0 | G18: =Wohneinheiten!C52 -> 0 | H18: =Wohneinheiten!H52 -> 0 | I18: =Wohneinheiten!C53 -> 0 | J18: =Wohneinheiten!H53 -> 0
B19: WE 16 | C19: 0 | D19: 0 | E19: =Wohneinheiten!C54 -> 0 | F19: =Wohneinheiten!H54 -> 0 | G19: =Wohneinheiten!C55 -> 0 | H19: =Wohneinheiten!H55 -> 0 | I19: =Wohneinheiten!C56 -> 0 | J19: =Wohneinheiten!H56 -> 0
C20: =SUM(C4:C19) -> 394.3 | D20: 1000 | F20: =SUM(F4:F19) -> 2639 | H20: =SUM(H4:H19) -> 612 | J20: =SUM(J4:J19) -> 183
B22: Posten | C22: Beschreibung | G22: Betrag
B23: 1 | C23: Grundsteuer | G23: 2564
B24: 2 | C24: Wasserkosten | G24: 600
B25: 3 | C25: Abwasser | G25: 500
B26: 4 | C26: Heizkosten | G26: 0
B27: 5 | C27: Zentrale Wasserbereitung | G27: 0
B28: 6 | C28: Verb. Heizungs- und Warmwasserversorgungsanlagen | G28: 0
B29: 7 | C29: Fahrstuhl | G29: 1094
B30: 8 | C30: Straßenreinigung / Müllabfuhr / Winterdienst | G30: 678
B31: 9 | C31: Hausreinigung / Ungezieferbeseitigung | G31: 100
B32: 10 | C32: Gartenpflege | G32: 350
B33: 11 | C33: Beleuchtung | G33: 100
B34: 12 | C34: Schornsteinreinigung | G34: 200
B35: 13 | C35: Versicherungen | G35: 1000
B36: 14 | C36: Hauswart | G36: 300
B37: 15 | C37: Gemeinschaftsantenne / Breitbandkabel | G37: 400
B38: 16 | C38: Wascheinrichtungen | G38: 100
B39: 17 | C39: Sonstige Kosten | G39: 200
E40: Summe: | G40: =SUM(G23:G39) -> 8186 | I40: =TODAY() -> 2023-03-31

Sheet Einzelabrechnung
B2: Betriebskostenabrechnung | C2: =Gesamtübersicht!E2 -> Musterstr. 11 | E2: =Gesamtübersicht!H2 -> 12345 Musterstadt
B4: Mietername | C4: Zeitraum | E4: Tage | F4: Personen
C5: Vom | D5: Bis
B6: Renate Musterfrau | C6: 2022-01-01 | D6: 2022-12-31 | E6: 365 | F6: 2
B9: Abrechnungsposten | C9: Saldo | D9: Schlüssel | E9: 365 Tage | F9: =E6& " Tage" -> 365 Tage
B10: Grundsteuer | C10: =Gesamtübersicht!G23 -> 2564 | D10: m² / Tage | E10: =F10/$E$6*365 -> 897.37 | F10: 897.37
B11: Wasserkosten | C11: =Gesamtübersicht!G24 -> 600 | D11: Zähler | E11: =F11/$E$6*365 -> 81.42 | F11: 81.42
B12: Abwasser | C12: =Gesamtübersicht!G25 -> 500 | D12: Zähler | E12: 67.85 | F12: 67.85
B13: Heizkosten | C13: =Gesamtübersicht!G26 -> 0 | D13: Zähler | E13: 0 | F13: 0
B14: Zentrale Wasserbereitung | C14: =Gesamtübersicht!G27 -> 0 | D14: Zähler | E14: 0 | F14: 0
B15: Verb. Heizungs- und Warmwasserversorgungsanl. | C15: =Gesamtübersicht!G28 -> 0 | D15: Zähler | E15: 0 | F15: 0
B16: Fahrstuhl | C16: =Gesamtübersicht!G29 -> 1094 | D16: m² / Tage | E16: 382.89 | F16: 382.89
B17: Straßenreinigung / Müllabfuhr / Winterdienst | C17: =Gesamtübersicht!G30 -> 678 | D17: m² / Tage | E17: 237.29 | F17: 237.29
B18: Hausreinigung / Ungezieferbeseitigung | C18: =Gesamtübersicht!G31 -> 100 | D18: m² / Tage | E18: 35 | F18: 35
B19: Gartenpflege | C19: =Gesamtübersicht!G32 -> 350 | D19: m² / Tage | E19: 122.5 | F19: 122.5
B20: Beleuchtung | C20: =Gesamtübersicht!G33 -> 100 | D20: m² / Tage | E20: 35 | F20: 35
B21: Schornsteinreinigung | C21: =Gesamtübersicht!G34 -> 200 | D21: m² / Tage | E21: 70 | F21: 70
B22: Versicherungen | C22: =Gesamtübersicht!G35 -> 1000 | D22: m² / Tage | E22: 349.99 | F22: 349.99
B23: Hauswart | C23: =Gesamtübersicht!G36 -> 300 | D23: m² / Tage | E23: 105 | F23: 105
B24: Gemeinschaftsantenne / Breitbandkabel | C24: =Gesamtübersicht!G37 -> 400 | D24: Wohnung=1 | E24: =F24/$E$6*365 -> 100 | F24: 100
B25: Wascheinrichtungen | C25: =Gesamtübersicht!G38 -> 100 | D25: Wohnung=1 | E25: 25 | F25: 25
B26: Sonstige Kosten | C26: =Gesamtübersicht!G39 -> 200 | D26: m² / Tage | E26: 42.52 | F26: 42.52
C27: Gesamtkosten: | E27: =SUM(E10:E26) -> 2551.83 | F27: =SUM(F10:F26) -> 2551.83
C29: Abzüglich Ihrer geleisteten Zahlungen: | F29: 3600
C30: Erstattung: | F30: =SUM(F29-F27) -> 1048.17
B32: Abrechnungsdatum: | F32: 0
B33: =TODAY() -> 2023-03-31 | C33: Neue Abschlagszahlung monatlich: | F33: 212.65
B35: - Die zuviel gezahlten Nebenkosten werden Ihnen innerhalb der nächsten 4 Wochen überwiesen! -
B36: - Bitte ändern Sie ggf. Ihren Dauerauftrag bei Ihrer Bank oder Sparkasse. Danke! -

Sheet Adressdaten
B2: Musterstr. 11, 12345 Musterstadt
B3: Adressdaten nach Auszug | G3: Bewohnte Einheit
B4: Name | C4: Straße/Nr. | D4: PLZ | E4: Ort | F4: Telefon | G4: WE | H4: BW | I4: von | J4: bis
B5: =Wohneinheiten!C9 -> Hans Mustermann | C5: Erstmieterstr. 1 | D5: 12345 | E5: Erstmieterstadt 1 | F5: 0123 456789 | G5: 1 | H5: =Wohneinheiten!D9 -> 1 | I5: =Wohneinheiten!E9 -> 2022-01-01 | J5: =Wohneinheiten!F9 -> 2022-03-31
B6: =Wohneinheiten!C10 -> Nachmieter 1 | C6: Nachmieterstr. 1 | D6: 23456 | E6: Nachmieterstadt 1 | F6: 0234 567890 | H6: =Wohneinheiten!D10 -> 2 | I6: =Wohneinheiten!E10 -> 2022-04-01 | J6: =Wohneinheiten!F10 -> 2022-10-31
B7: =Wohneinheiten!C11 -> Nachmieter 2 | H7: =Wohneinheiten!D11 -> 3 | I7: =Wohneinheiten!E11 -> 2022-11-01 | J7: =Wohneinheiten!F11 -> 2022-12-31
B8: =Wohneinheiten!C12 -> Renate Musterfrau | G8: 2 | H8: =Wohneinheiten!D12 -> 2 | I8: =Wohneinheiten!E12 -> 2022-01-01 | J8: =Wohneinheiten!F12 -> 2022-12-31
B9: =Wohneinheiten!C13 -> 0 | H9: =Wohneinheiten!D13 -> 0 | I9: =Wohneinheiten!E13 -> 00:00:00 | J9: =Wohneinheiten!F13 -> 00:00:00
B10: =Wohneinheiten!C14 -> 0 | H10: =Wohneinheiten!D14 -> 0 | I10: =Wohneinheiten!E14 -> 00:00:00 | J10: =Wohneinheiten!F14 -> 00:00:00
B11: =Wohneinheiten!C15 -> Hans Testperson | G11: 3 | H11: =Wohneinheiten!D15 -> 3 | I11: =Wohneinheiten!E15 -> 2022-01-01 | J11: =Wohneinheiten!F15 -> 2022-12-31
B12: =Wohneinheiten!C16 -> 0 | H12: =Wohneinheiten!D16 -> 0 | I12: =Wohneinheiten!E16 -> 00:00:00 | J12: =Wohneinheiten!F16 -> 00:00:00
B13: =Wohneinheiten!C17 -> 0 | H13: =Wohneinheiten!D17 -> 0 | I13: =Wohneinheiten!E17 -> 00:00:00 | J13: =Wohneinheiten!F17 -> 00:00:00
B14: =Wohneinheiten!C18 -> Renate Testperson | C14: Erstmieterstr. 2 | D14: 12345 | E14: Erstmieterstadt 2 | F14: 0123 456789 | G14: 4 | H14: =Wohneinheiten!D18 -> 4 | I14: =Wohneinheiten!E18 -> 2022-01-01 | J14: =Wohneinheiten!F18 -> 2022-06-30
B15: =Wohneinheiten!C19 -> Nachmieter 3 | H15: =Wohneinheiten!D19 -> 1 | I15: =Wohneinheiten!E19 -> 2022-07-01 | J15: =Wohneinheiten!F19 -> 2022-12-31
B16: =Wohneinheiten!C20 -> 0 | H16: =Wohneinheiten!D20 -> 0 | I16: =Wohneinheiten!E20 -> 00:00:00 | J16: =Wohneinheiten!F20 -> 00:00:00
B17: =Wohneinheiten!C21 -> 0 | G17: 5 | H17: =Wohneinheiten!D21 -> 0 | I17: =Wohneinheiten!E21 -> 00:00:00 | J17: =Wohneinheiten!F21 -> 00:00:00
B18: =Wohneinheiten!C22 -> 0 | H18: =Wohneinheiten!D22 -> 0 | I18: =Wohneinheiten!E22 -> 00:00:00 | J18: =Wohneinheiten!F22 -> 00:00:00
B19: =Wohneinheiten!C23 -> 0 | H19: =Wohneinheiten!D23 -> 0 | I19: =Wohneinheiten!E23 -> 00:00:00 | J19: =Wohneinheiten!F23 -> 00:00:00
B20: =Wohneinheiten!C24 -> 0 | G20: 6 | H20: =Wohneinheiten!D24 -> 0 | I20: =Wohneinheiten!E24 -> 00:00:00 | J20: =Wohneinheiten!F24 -> 00:00:00
B21: =Wohneinheiten!C25 -> 0 | H21: =Wohneinheiten!D25 -> 0 | I21: =Wohneinheiten!E25 -> 00:00:00 | J21: =Wohneinheiten!F25 -> 00:00:00
B22: =Wohneinheiten!C26 -> 0 | H22: =Wohneinheiten!D26 -> 0 | I22: =Wohneinheiten!E26 -> 00:00:00 | J22: =Wohneinheiten!F26 -> 00:00:00
B23: =Wohneinheiten!C27 -> 0 | G23: 7 | H23: =Wohneinheiten!D27 -> 0 | I23: =Wohneinheiten!E27 -> 00:00:00 | J23: =Wohneinheiten!F27 -> 00:00:00
B24: =Wohneinheiten!C28 -> 0 | H24: =Wohneinheiten!D28 -> 0 | I24: =Wohneinheiten!E28 -> 00:00:00 | J24: =Wohneinheiten!F28 -> 00:00:00
B25: =Wohneinheiten!C29 -> 0 | H25: =Wohneinheiten!D29 -> 0 | I25: =Wohneinheiten!E29 -> 00:00:00 | J25: =Wohneinheiten!F29 -> 00:00:00
B26: =Wohneinheiten!C30 -> 0 | G26: 8 | H26: =Wohneinheiten!D30 -> 0 | I26: =Wohneinheiten!E30 -> 00:00:00 | J26: =Wohneinheiten!F30 -> 00:00:00
B27: =Wohneinheiten!C31 -> 0 | H27: =Wohneinheiten!D31 -> 0 | I27: =Wohneinheiten!E31 -> 00:00:00 | J27: =Wohneinheiten!F31 -> 00:00:00
B28: =Wohneinheiten!C32 -> 0 | H28: =Wohneinheiten!D32 -> 0 | I28: =Wohneinheiten!E32 -> 00:00:00 | J28: =Wohneinheiten!F32 -> 00:00:00
B29: =Wohneinheiten!C33 -> 0 | G29: 9 | H29: =Wohneinheiten!D33 -> 0 | I29: =Wohneinheiten!E33 -> 00:00:00 | J29: =Wohneinheiten!F33 -> 00:00:00
B30: =Wohneinheiten!C34 -> 0 | H30: =Wohneinheiten!D34 -> 0 | I30: =Wohneinheiten!E34 -> 00:00:00 | J30: =Wohneinheiten!F34 -> 00:00:00
B31: =Wohneinheiten!C35 -> 0 | H31: =Wohneinheiten!D35 -> 0 | I31: =Wohneinheiten!E35 -> 00:00:00 | J31: =Wohneinheiten!F35 -> 00:00:00
B32: =Wohneinheiten!C36 -> 0 | G32: 10 | H32: =Wohneinheiten!D36 -> 0 | I32: =Wohneinheiten!E36 -> 00:00:00 | J32: =Wohneinheiten!F36 -> 00:00:00
B33: =Wohneinheiten!C37 -> 0 | H33: =Wohneinheiten!D37 -> 0 | I33: =Wohneinheiten!E37 -> 00:00:00 | J33: =Wohneinheiten!F37 -> 00:00:00
B34: =Wohneinheiten!C38 -> 0 | H34: =Wohneinheiten!D38 -> 0 | I34: =Wohneinheiten!E38 -> 00:00:00 | J34: =Wohneinheiten!F38 -> 00:00:00
B35: =Wohneinheiten!C39 -> 0 | G35: 11 | H35: =Wohneinheiten!D39 -> 0 | I35: =Wohneinheiten!E39 -> 00:00:00 | J35: =Wohneinheiten!F39 -> 00:00:00
B36: =Wohneinheiten!C40 -> 0 | H36: =Wohneinheiten!D40 -> 0 | I36: =Wohneinheiten!E40 -> 00:00:00 | J36: =Wohneinheiten!F40 -> 00:00:00
B37: =Wohneinheiten!C41 -> 0 | H37: =Wohneinheiten!D41 -> 0 | I37: =Wohneinheiten!E41 -> 00:00:00 | J37: =Wohneinheiten!F41 -> 00:00:00
B38: =Wohneinheiten!C42 -> 0 | G38: 12 | H38: =Wohneinheiten!D42 -> 0 | I38: =Wohneinheiten!E42 -> 00:00:00 | J38: =Wohneinheiten!F42 -> 00:00:00
B39: =Wohneinheiten!C43 -> 0 | H39: =Wohneinheiten!D43 -> 0 | I39: =Wohneinheiten!E43 -> 00:00:00 | J39: =Wohneinheiten!F43 -> 00:00:00
B40: =Wohneinheiten!C44 -> 0 | H40: =Wohneinheiten!D44 -> 0 | I40: =Wohneinheiten!E44 -> 00:00:00 | J40: =Wohneinheiten!F44 -> 00:00:00
B41: =Wohneinheiten!C45 -> 0 | G41: 13 | H41: =Wohneinheiten!D45 -> 0 | I41: =Wohneinheiten!E45 -> 00:00:00 | J41: =Wohneinheiten!F45 -> 00:00:00
B42: =Wohneinheiten!C46 -> 0 | H42: =Wohneinheiten!D46 -> 0 | I42: =Wohneinheiten!E46 -> 00:00:00 | J42: =Wohneinheiten!F46 -> 00:00:00
B43: =Wohneinheiten!C47 -> 0 | H43: =Wohneinheiten!D47 -> 0 | I43: =Wohneinheiten!E47 -> 00:00:00 | J43: =Wohneinheiten!F47 -> 00:00:00
B44: =Wohneinheiten!C48 -> 0 | G44: 14 | H44: =Wohneinheiten!D48 -> 0 | I44: =Wohneinheiten!E48 -> 00:00:00 | J44: =Wohneinheiten!F48 -> 00:00:00
B45: =Wohneinheiten!C49 -> 0 | H45: =Wohneinheiten!D49 -> 0 | I45: =Wohneinheiten!E49 -> 00:00:00 | J45: =Wohneinheiten!F49 -> 00:00:00
B46: =Wohneinheiten!C50 -> 0 | H46: =Wohneinheiten!D50 -> 0 | I46: =Wohneinheiten!E50 -> 00:00:00 | J46: =Wohneinheiten!F50 -> 00:00:00
B47: =Wohneinheiten!C51 -> 0 | G47: 15 | H47: =Wohneinheiten!D51 -> 0 | I47: =Wohneinheiten!E51 -> 00:00:00 | J47: =Wohneinheiten!F51 -> 00:00:00
B48: =Wohneinheiten!C52 -> 0 | H48: =Wohneinheiten!D52 -> 0 | I48: =Wohneinheiten!E52 -> 00:00:00 | J48: =Wohneinheiten!F52 -> 00:00:00
B49: =Wohneinheiten!C53 -> 0 | H49: =Wohneinheiten!D53 -> 0 | I49: =Wohneinheiten!E53 -> 00:00:00 | J49: =Wohneinheiten!F53 -> 00:00:00
B50: =Wohneinheiten!C54 -> 0 | G50: 16 | H50: =Wohneinheiten!D54 -> 0 | I50: =Wohneinheiten!E54 -> 00:00:00 | J50: =Wohneinheiten!F54 -> 00:00:00
B51: =Wohneinheiten!C55 -> 0 | H51: =Wohneinheiten!D55 -> 0 | I51: =Wohneinheiten!E55 -> 00:00:00 | J51: =Wohneinheiten!F55 -> 00:00:00
B52: =Wohneinheiten!C56 -> 0 | H52: =Wohneinheiten!D56 -> 0 | I52: =Wohneinheiten!E56 -> 00:00:00 | J52: =Wohneinheiten!F56 -> 00:00:00
